Workbook

Sheet SONIA_3_Mo_Master
B4: ="CQG "&RTD("cqg.rtd",,"ContractData",K6,"LongDescription") -> CQG Three Month SONIA, Jun 23 | M4: CQG 3 Month SONIA Forward Curves | AB4: =RTD("cqg.rtd", ,"SystemInfo", "Linetime") -> 45019.37575
K6: =RTD("cqg.rtd", ,"ContractData",'SO3'!Q2, "Symbol") -> SO3M23 | L6: =RTD("cqg.rtd", ,"ContractData",'SO3'!Q3, "Symbol") -> SO3U23 | M6: =RTD("cqg.rtd", ,"ContractData",'SO3'!Q4, "Symbol") -> SO3Z23 | N6: =RTD("cqg.rtd", ,"ContractData",'SO3'!Q5, "Symbol") -> SO3H24 | O6: =RTD("cqg.rtd", ,"ContractData",'SO3'!Q6, "Symbol") -> SO3M24 | P6: =RTD("cqg.rtd", ,"ContractData",'SO3'!Q7, "Symbol") -> SO3U24 | Q6: =RTD("cqg.rtd", ,"ContractData",'SO3'!Q8, "Symbol") -> SO3Z24 | R6: =RTD("cqg.rtd", ,"ContractData",'SO3'!Q9, "Symbol") -> SO3H25 | S6: =RTD("cqg.rtd", ,"ContractData",'SO3'!Q10, "Symbol") -> SO3M25 | T6: =RTD("cqg.rtd", ,"ContractData",'SO3'!Q11, "Symbol") -> SO3U25 | U6: =RTD("cqg.rtd", ,"ContractData",'SO3'!Q12, "Symbol") -> SO3Z25 | V6: =RTD("cqg.rtd", ,"ContractData",'SO3'!Q13, "Symbol") -> SO3H26 | W6: =RTD("cqg.rtd", ,"ContractData",'SO3'!Q14, "Symbol") -> SO3M26 | X6: =RTD("cqg.rtd", ,"ContractData",'SO3'!Q15, "Symbol") -> SO3U26 | Y6: =RTD("cqg.rtd", ,"ContractData",'SO3'!Q16, "Symbol") -> SO3Z26 | Z6: =RTD("cqg.rtd", ,"ContractData",'SO3'!Q17, "Symbol") -> SO3H27 | AA6: =RTD("cqg.rtd", ,"ContractData",'SO3'!Q18, "Symbol") -> SO3M27 | AB6: =RTD("cqg.rtd", ,"ContractData",'SO3'!Q18, "Symbol") -> SO3M27 | AC6: =RTD("cqg.rtd", ,"ContractData",'SO3'!Q20, "Symbol") -> SO3Z27 | AD6: =RTD("cqg.rtd", ,"ContractData",'SO3'!Q21, "Symbol") -> SO3H28 | AI6: =LEFT(RIGHT(K6,3),1) -> M | AJ6: =LEFT(RIGHT(L6,3),1) -> U | AK6: =LEFT(RIGHT(M6,3),1) -> Z | AL6: H | AM6: M | AN6: U | AO6: Z | AP6: H | AQ6: M | AR6: U | AS6: Z | AT6: H | AU6: M | AV6: U | AW6: =LEFT(RIGHT(Y6,3),1) -> Z | AX6: =LEFT(RIGHT(Z6,3),1) -> H | AY6: =LEFT(RIGHT(AA6,3),1) -> M | AZ6: =LEFT(RIGHT(AB6,3),1) -> M | BA6: =LEFT(RIGHT(AC6,3),1) -> Z | BB6: =LEFT(RIGHT(AD6,3),1) -> H
B7: Ask | C7: =RTD("cqg.rtd", ,"ContractData",K6, "MT_LastAskVolume") -> 206 | E7: =RTD("cqg.rtd", ,"ContractData",K6, "Ask",,"T") -> 95.465 | G7: Last Trade | K7: =IF(AI6="F","JAN",IF(AI6="G","FEB",IF(AI6="H","MAR",IF(AI6="J","APR",IF(AI6="K","MAY",IF(AI6="M","JUN",IF(AI6="N","JUL",IF(AI6="Q","AUG",IF(AI6="U","SEP",IF(AI6="V","OCT",IF(AI6="X","NOV",IF(AI6="Z","DEC",))))))))))))&" "&RIGHT(K6,2) -> JUN 23 | L7: SEP 23 | M7: DEC 23 | N7: MAR 24 | O7: JUN 24 | P7: SEP 24 | Q7: DEC 24 | R7: MAR 25 | S7: JUN 25 | T7: SEP 25 | U7: DEC 25 | V7: MAR 26 | W7: JUN 26 | X7: SEP 26 | Y7: =IF(AW6="F","JAN",IF(AW6="G","FEB",IF(AW6="H","MAR",IF(AW6="J","APR",IF(AW6="K","MAY",IF(AW6="M","JUN",IF(AW6="N","JUL",IF(AW6="Q","AUG",IF(AW6="U","SEP",IF(AW6="V","OCT",IF(AW6="X","NOV",IF(AW6="Z","DEC",))))))))))))&" "&RIGHT(Y6,2) -> DEC 26 | Z7: MAR 27 | AA7: JUN 27 | AB7: JUN 27 | AC7: DEC 27 | AD7: MAR 28
K8: =IF(RTD("cqg.rtd",,"ContractData",K6,"Ask",,"T")="","",TEXT(RTD("cqg.rtd",,"ContractData",K6,"Ask",,"T"),"#.0000")&" "&"A") -> 95.4650 A | L8: =IF(RTD("cqg.rtd",,"ContractData",L6,"Ask",,"T")="","",TEXT(RTD("cqg.rtd",,"ContractData",L6,"Ask",,"T"),"#.000")&" "&"A") -> 95.440 A | M8: =IF(RTD("cqg.rtd",,"ContractData",M6,"Ask",,"T")="","",TEXT(RTD("cqg.rtd",,"ContractData",M6,"Ask",,"T"),"#.000")&" "&"A") -> 95.570 A | N8: =IF(RTD("cqg.rtd",,"ContractData",N6,"Ask",,"T")="","",TEXT(RTD("cqg.rtd",,"ContractData",N6,"Ask",,"T"),"#.000")&" "&"A") -> 95.795 A | O8: =IF(RTD("cqg.rtd",,"ContractData",O6,"Ask",,"T")="","",TEXT(RTD("cqg.rtd",,"ContractData",O6,"Ask",,"T"),"#.000")&" "&"A") -> 96.025 A | P8: =IF(RTD("cqg.rtd",,"ContractData",P6,"Ask",,"T")="","",TEXT(RTD("cqg.rtd",,"ContractData",P6,"Ask",,"T"),"#.000")&" "&"A") -> 96.185 A | Q8: =IF(RTD("cqg.rtd",,"ContractData",Q6,"Ask",,"T")="","",TEXT(RTD("cqg.rtd",,"ContractData",Q6,"Ask",,"T"),"#.000")&" "&"A") -> 96.270 A | R8: =IF(RTD("cqg.rtd",,"ContractData",R6,"Ask",,"T")="","",TEXT(RTD("cqg.rtd",,"ContractData",R6,"Ask",,"T"),"#.000")&" "&"A") -> 96.325 A | S8: =IF(RTD("cqg.rtd",,"ContractData",S6,"Ask",,"T")="","",TEXT(RTD("cqg.rtd",,"ContractData",S6,"Ask",,"T"),"#.000")&" "&"A") -> 96.375 A | T8: =IF(RTD("cqg.rtd",,"ContractData",T6,"Ask",,"T")="","",TEXT(RTD("cqg.rtd",,"ContractData",T6,"Ask",,"T"),"#.000")&" "&"A") -> 96.430 A | U8: =IF(RTD("cqg.rtd",,"ContractData",U6,"Ask",,"T")="","",TEXT(RTD("cqg.rtd",,"ContractData",U6,"Ask",,"T"),"#.000")&" "&"A") -> 96.490 A | V8: =IF(RTD("cqg.rtd",,"ContractData",V6,"Ask",,"T")="","",TEXT(RTD("cqg.rtd",,"ContractData",V6,"Ask",,"T"),"#.000")&" "&"A") -> 96.535 A | W8: =IF(RTD("cqg.rtd",,"ContractData",W6,"Ask",,"T")="","",TEXT(RTD("cqg.rtd",,"ContractData",W6,"Ask",,"T"),"#.000")&" "&"A") -> 96.575 A | X8: =IF(RTD("cqg.rtd",,"ContractData",X6,"Ask",,"T")="","",TEXT(RTD("cqg.rtd",,"ContractData",X6,"Ask",,"T"),"#.000")&" "&"A") -> 96.615 A | Y8: =IF(RTD("cqg.rtd",,"ContractData",Y6,"Ask",,"T")="","",TEXT(RTD("cqg.rtd",,"ContractData",Y6,"Ask",,"T"),"#.000")&" "&"A") -> 96.665 A | Z8: =IF(RTD("cqg.rtd",,"ContractData",Z6,"Ask",,"T")="","",TEXT(RTD("cqg.rtd",,"ContractData",Z6,"Ask",,"T"),"#.000")&" "&"A") -> 96.715 A | AA8: =IF(RTD("cqg.rtd",,"ContractData",AA6,"Ask",,"T")="","",TEXT(RTD("cqg.rtd",,"ContractData",AA6,"Ask",,"T"),"#.000")&" "&"A") -> 96.760 A | AB8: =IF(RTD("cqg.rtd",,"ContractData",AB6,"Ask",,"T")="","",TEXT(RTD("cqg.rtd",,"ContractData",AB6,"Ask",,"T"),"#.000")&" "&"A") -> 96.760 A | AC8: =IF(RTD("cqg.rtd",,"ContractData",AC6,"Ask",,"T")="","",TEXT(RTD("cqg.rtd",,"ContractData",AC6,"Ask",,"T"),"#.000")&" "&"A") -> 96.815 A | AD8: =IF(RTD("cqg.rtd",,"ContractData",AD6,"Ask",,"T")="","",TEXT(RTD("cqg.rtd",,"ContractData",AD6,"Ask",,"T"),"#.000")&" "&"A") -> 96.835 A
B9: Bid | C9: =RTD("cqg.rtd", ,"ContractData",K6, "MT_LastBidVolume") -> 469 | E9: =RTD("cqg.rtd", ,"ContractData",K6, "Bid",,"T") -> 95.455 | G9: =RTD("cqg.rtd", ,"ContractData",K6,"LastTradeorSettle",,"T") -> 95.46 | I9: =IF(G13>0,"+"&TEXT(RTD("cqg.rtd",,"ContractData",K6,"NetLastTradeToday",,"T"),"#.0000"),TEXT(G13,"#.0000")) -> +.0100 | K9: =IF(RTD("cqg.rtd",,"ContractData",K6,"Bid",,"T")="","",TEXT(RTD("cqg.rtd",,"ContractData",K6,"Bid",,"T"),"#.0000")&" "&"B") -> 95.4550 B | L9: =IF(RTD("cqg.rtd",,"ContractData",L6,"Bid",,"T")="","",TEXT(RTD("cqg.rtd",,"ContractData",L6,"Bid",,"T"),"#.000")&" "&"B") -> 95.430 B | M9: =IF(RTD("cqg.rtd",,"ContractData",M6,"Bid",,"T")="","",TEXT(RTD("cqg.rtd",,"ContractData",M6,"Bid",,"T"),"#.000")&" "&"B") -> 95.560 B | N9: =IF(RTD("cqg.rtd",,"ContractData",N6,"Bid",,"T")="","",TEXT(RTD("cqg.rtd",,"ContractData",N6,"Bid",,"T"),"#.000")&" "&"B") -> 95.790 B | O9: =IF(RTD("cqg.rtd",,"ContractData",O6,"Bid",,"T")="","",TEXT(RTD("cqg.rtd",,"ContractData",O6,"Bid",,"T"),"#.000")&" "&"B") -> 96.015 B | P9: =IF(RTD("cqg.rtd",,"ContractData",P6,"Bid",,"T")="","",TEXT(RTD("cqg.rtd",,"ContractData",P6,"Bid",,"T"),"#.000")&" "&"B") -> 96.175 B | Q9: =IF(RTD("cqg.rtd",,"ContractData",Q6,"Bid",,"T")="","",TEXT(RTD("cqg.rtd",,"ContractData",Q6,"Bid",,"T"),"#.000")&" "&"B") -> 96.260 B | R9: =IF(RTD("cqg.rtd",,"ContractData",R6,"Bid",,"T")="","",TEXT(RTD("cqg.rtd",,"ContractData",R6,"Bid",,"T"),"#.000")&" "&"B") -> 96.315 B | S9: =IF(RTD("cqg.rtd",,"ContractData",S6,"Bid",,"T")="","",TEXT(RTD("cqg.rtd",,"ContractData",S6,"Bid",,"T"),"#.000")&" "&"B") -> 96.365 B | T9: =IF(RTD("cqg.rtd",,"ContractData",T6,"Bid",,"T")="","",TEXT(RTD("cqg.rtd",,"ContractData",T6,"Bid",,"T"),"#.000")&" "&"B") -> 96.425 B | U9: =IF(RTD("cqg.rtd",,"ContractData",U6,"Bid",,"T")="","",TEXT(RTD("cqg.rtd",,"ContractData",U6,"Bid",,"T"),"#.000")&" "&"B") -> 96.480 B | V9: =IF(RTD("cqg.rtd",,"ContractData",V6,"Bid",,"T")="","",TEXT(RTD("cqg.rtd",,"ContractData",V6,"Bid",,"T"),"#.000")&" "&"B") -> 96.530 B | W9: =IF(RTD("cqg.rtd",,"ContractData",W6,"Bid",,"T")="","",TEXT(RTD("cqg.rtd",,"ContractData",W6,"Bid",,"T"),"#.000")&" "&"B") -> 96.565 B | X9: =IF(RTD("cqg.rtd",,"ContractData",X6,"Bid",,"T")="","",TEXT(RTD("cqg.rtd",,"ContractData",X6,"Bid",,"T"),"#.000")&" "&"B") -> 96.605 B | Y9: =IF(RTD("cqg.rtd",,"ContractData",Y6,"Bid",,"T")="","",TEXT(RTD("cqg.rtd",,"ContractData",Y6,"Bid",,"T"),"#.000")&" "&"B") -> 96.655 B | Z9: =IF(RTD("cqg.rtd",,"ContractData",Z6,"Bid",,"T")="","",TEXT(RTD("cqg.rtd",,"ContractData",Z6,"Bid",,"T"),"#.000")&" "&"B") -> 96.710 B | AA9: =IF(RTD("cqg.rtd",,"ContractData",AA6,"Bid",,"T")="","",TEXT(RTD("cqg.rtd",,"ContractData",AA6,"Bid",,"T"),"#.000")&" "&"B") -> 96.750 B | AB9: =IF(RTD("cqg.rtd",,"ContractData",AB6,"Bid",,"T")="","",TEXT(RTD("cqg.rtd",,"ContractData",AB6,"Bid",,"T"),"#.000")&" "&"B") -> 96.750 B | AC9: =IF(RTD("cqg.rtd",,"ContractData",AC6,"Bid",,"T")="","",TEXT(RTD("cqg.rtd",,"ContractData",AC6,"Bid",,"T"),"#.000")&" "&"B") -> 96.795 B | AD9: =IF(RTD("cqg.rtd",,"ContractData",AD6,"Bid",,"T")="","",TEXT(RTD("cqg.rtd",,"ContractData",AD6,"Bid",,"T"),"#.000")&" "&"B") -> 96.800 B
K10: =TEXT(RTD("cqg.rtd", ,"ContractData",K6,"LastTradeorSettle",,"T"),"#.0000")&" "&"L" -> 95.4600 L | L10: =TEXT(RTD("cqg.rtd", ,"ContractData",L6,"LastTradeorSettle",,"T"),"#.000")&" "&"L" -> 95.435 L | M10: =TEXT(RTD("cqg.rtd", ,"ContractData",M6,"LastTradeorSettle",,"T"),"#.000")&" "&"L" -> 95.570 L | N10: =TEXT(RTD("cqg.rtd", ,"ContractData",N6,"LastTradeorSettle",,"T"),"#.000")&" "&"L" -> 95.795 L | O10: =TEXT(RTD("cqg.rtd", ,"ContractData",O6,"LastTradeorSettle",,"T"),"#.000")&" "&"L" -> 96.025 L | P10: =TEXT(RTD("cqg.rtd", ,"ContractData",P6,"LastTradeorSettle",,"T"),"#.000")&" "&"L" -> 96.185 L | Q10: =TEXT(RTD("cqg.rtd", ,"ContractData",Q6,"LastTradeorSettle",,"T"),"#.000")&" "&"L" -> 96.265 L | R10: =TEXT(RTD("cqg.rtd", ,"ContractData",R6,"LastTradeorSettle",,"T"),"#.000")&" "&"L" -> 96.320 L | S10: =TEXT(RTD("cqg.rtd", ,"ContractData",S6,"LastTradeorSettle",,"T"),"#.000")&" "&"L" -> 96.375 L | T10: =TEXT(RTD("cqg.rtd", ,"ContractData",T6,"LastTradeorSettle",,"T"),"#.000")&" "&"L" -> 96.430 L | U10: =TEXT(RTD("cqg.rtd", ,"ContractData",U6,"LastTradeorSettle",,"T"),"#.000")&" "&"L" -> 96.485 L | V10: =TEXT(RTD("cqg.rtd", ,"ContractData",V6,"LastTradeorSettle",,"T"),"#.000")&" "&"L" -> 96.525 L | W10: =TEXT(RTD("cqg.rtd", ,"ContractData",W6,"LastTradeorSettle",,"T"),"#.000")&" "&"L" -> 96.570 L | X10: =TEXT(RTD("cqg.rtd", ,"ContractData",X6,"LastTradeorSettle",,"T"),"#.000")&" "&"L" -> 96.615 L | Y10: =TEXT(RTD("cqg.rtd", ,"ContractData",Y6,"LastTradeorSettle",,"T"),"#.000")&" "&"L" -> 96.650 L | Z10: =TEXT(RTD("cqg.rtd", ,"ContractData",Z6,"LastTradeorSettle",,"T"),"#.000")&" "&"L" -> 96.715 L | AA10: =TEXT(RTD("cqg.rtd", ,"ContractData",AA6,"LastTradeorSettle",,"T"),"#.000")&" "&"L" -> 96.755 L | AB10: =TEXT(RTD("cqg.rtd", ,"ContractData",AB6,"LastTradeorSettle",,"T"),"#.000")&" "&"L" -> 96.755 L | AC10: =TEXT(RTD("cqg.rtd", ,"ContractData",AC6,"LastTradeorSettle",,"T"),"#.000")&" "&"L" -> 96.755 L | AD10: =TEXT(RTD("cqg.rtd", ,"ContractData",AD6,"LastTradeorSettle",,"T"),"#.000")&" "&"L" -> 96.765 L
B11: Enter First Contract Symbol: | E11: SO3M23 | G11: ='SO3'!C18 -> 97 | H11: ='SO3'!D18 -> 95
B12: Symbols | C12: Open | D12: High | E12: Low | F12: Last | G12: Net | H12: Net | I12: Volume
A13: =RTD("cqg.rtd",,"ContractData",K6, "Symbol") -> SO3M23 | B13: =RIGHT(RTD("cqg.rtd",,"ContractData",A13, "LongDescription"),7) -> Jun 23 | C13: =RTD("cqg.rtd", ,"ContractData",A13, "Open",,"T") -> 95.425 | D13: =RTD("cqg.rtd", ,"ContractData",A13, "High",,"T") -> 95.465 | E13: =RTD("cqg.rtd", ,"ContractData",A13, "Low",,"T") -> 95.39 | F13: =RTD("cqg.rtd", ,"ContractData",A13, "LastTradeorSettle",,"T") -> 95.46 | G13: =RTD("cqg.rtd",,"ContractData",A13,"NetLastTradeToday",,"T") -> 0.01 | H13: =RTD("cqg.rtd",,"ContractData",A13,"NetLastTradeToday",,"T") -> 0.01 | I13: =RTD("cqg.rtd", ,"ContractData",A13, "T_CVol") -> 16241
A14: =RTD("cqg.rtd",,"ContractData",L6, "Symbol") -> SO3U23 | B14: =RIGHT(RTD("cqg.rtd",,"ContractData",A14, "LongDescription"),7) -> Sep 23 | C14: =RTD("cqg.rtd", ,"ContractData",A14, "Open",,"T") -> 95.355 | D14: =RTD("cqg.rtd", ,"ContractData",A14, "High",,"T") -> 95.445 | E14: =RTD("cqg.rtd", ,"ContractData",A14, "Low",,"T") -> 95.335 | F14: =RTD("cqg.rtd", ,"ContractData",A14, "LastTradeorSettle",,"T") -> 95.435 | G14: =RTD("cqg.rtd",,"ContractData",A14,"NetLastTradeToday",,"T") -> 0.015 | H14: =RTD("cqg.rtd",,"ContractData",A14,"NetLastTradeToday",,"T") -> 0.015 | I14: =RTD("cqg.rtd", ,"ContractData",A14, "T_CVol") -> 14553
A15: =RTD("cqg.rtd",,"ContractData",M6, "Symbol") -> SO3Z23 | B15: =RIGHT(RTD("cqg.rtd",,"ContractData",A15, "LongDescription"),7) -> ~ð¶b~ | C15: =RTD("cqg.rtd", ,"ContractData",A15, "Open",,"T") -> 95.51 | D15: =RTD("cqg.rtd", ,"ContractData",A15, "High",,"T") -> 95.575 | E15: =RTD("cqg.rtd", ,"ContractData",A15, "Low",,"T") -> 95.455 | F15: =RTD("cqg.rtd", ,"ContractData",A15, "LastTradeorSettle",,"T") -> 95.57 | G15: =RTD("cqg.rtd",,"ContractData",A15,"NetLastTradeToday",,"T") -> 0.025 | H15: =RTD("cqg.rtd",,"ContractData",A15,"NetLastTradeToday",,"T") -> 0.025 | I15: =RTD("cqg.rtd", ,"ContractData",A15, "T_CVol") -> 13153
A16: =RTD("cqg.rtd",,"ContractData",N6, "Symbol") -> SO3H24 | B16: =RIGHT(RTD("cqg.rtd",,"ContractData",A16, "LongDescription"),7) -> Mar 24 | C16: =RTD("cqg.rtd", ,"ContractData",A16, "Open",,"T") -> 95.745 | D16: =RTD("cqg.rtd", ,"ContractData",A16, "High",,"T") -> 95.8 | E16: =RTD("cqg.rtd", ,"ContractData",A16, "Low",,"T") -> 95.66 | F16: =RTD("cqg.rtd", ,"ContractData",A16, "LastTradeorSettle",,"T") -> 95.795 | G16: =RTD("cqg.rtd",,"ContractData",A16,"NetLastTradeToday",,"T") -> 0.03 | H16: =RTD("cqg.rtd",,"ContractData",A16,"NetLastTradeToday",,"T") -> 0.03 | I16: =RTD("cqg.rtd", ,"ContractData",A16, "T_CVol") -> 12401
A17: =RTD("cqg.rtd",,"ContractData",O6, "Symbol") -> SO3M24 | B17: =RIGHT(RTD("cqg.rtd",,"ContractData",A17, "LongDescription"),7) -> Œ | C17: =RTD("cqg.rtd", ,"ContractData",A17, "Open",,"T") -> 95.97 | D17: =RTD("cqg.rtd", ,"ContractData",A17, "High",,"T") -> 96.025 | E17: =RTD("cqg.rtd", ,"ContractData",A17, "Low",,"T") -> 95.885 | F17: =RTD("cqg.rtd", ,"ContractData",A17, "LastTradeorSettle",,"T") -> 96.025 | G17: =RTD("cqg.rtd",,"ContractData",A17,"NetLastTradeToday",,"T") -> 0.03 | H17: =RTD("cqg.rtd",,"ContractData",A17,"NetLastTradeToday",,"T") -> 0.03 | I17: =RTD("cqg.rtd", ,"ContractData",A17, "T_CVol") -> 13748
A18: =RTD("cqg.rtd",,"ContractData",P6, "Symbol") -> SO3U24 | B18: =RIGHT(RTD("cqg.rtd",,"ContractData",A18, "LongDescription"),7) -> Sep 24 | C18: =RTD("cqg.rtd", ,"ContractData",A18, "Open",,"T") -> 96.065 | D18: =RTD("cqg.rtd", ,"ContractData",A18, "High",,"T") -> 96.185 | E18: =RTD("cqg.rtd", ,"ContractData",A18, "Low",,"T") -> 96.05 | F18: =RTD("cqg.rtd", ,"ContractData",A18, "LastTradeorSettle",,"T") -> 96.185 | G18: =RTD("cqg.rtd",,"ContractData",A18,"NetLastTradeToday",,"T") -> 0.03 | H18: =RTD("cqg.rtd",,"ContractData",A18,"NetLastTradeToday",,"T") -> 0.03 | I18: =RTD("cqg.rtd", ,"ContractData",A18, "T_CVol") -> 9760
A19: =RTD("cqg.rtd",,"ContractData",Q6, "Symbol") -> SO3Z24 | B19: =RIGHT(RTD("cqg.rtd",,"ContractData",A19, "LongDescription"),7) -> Dec 24 | C19: =RTD("cqg.rtd", ,"ContractData",A19, "Open",,"T") -> 96.145 | D19: =RTD("cqg.rtd", ,"ContractData",A19, "High",,"T") -> 96.27 | E19: =RTD("cqg.rtd", ,"ContractData",A19, "Low",,"T") -> 96.13 | F19: =RTD("cqg.rtd", ,"ContractData",A19, "LastTradeorSettle",,"T") -> 96.265 | G19: =RTD("cqg.rtd",,"ContractData",A19,"NetLastTradeToday",,"T") -> 0.035 | H19: =RTD("cqg.rtd",,"ContractData",A19,"NetLastTradeToday",,"T") -> 0.035 | I19: =RTD("cqg.rtd", ,"ContractData",A19, "T_CVol") -> 10930
A20: =RTD("cqg.rtd",,"ContractData",R6, "Symbol") -> SO3H25 | B20: =RIGHT(RTD("cqg.rtd",,"ContractData",A20, "LongDescription"),7) -> Mar 25 | C20: =RTD("cqg.rtd", ,"ContractData",A20, "Open",,"T") -> 96.2 | D20: =RTD("cqg.rtd", ,"ContractData",A20, "High",,"T") -> 96.32 | E20: =RTD("cqg.rtd", ,"ContractData",A20, "Low",,"T") -> 96.19 | F20: =RTD("cqg.rtd", ,"ContractData",A20, "LastTradeorSettle",,"T") -> 96.32 | G20: =RTD("cqg.rtd",,"ContractData",A20,"NetLastTradeToday",,"T") -> 0.035 | H20: =RTD("cqg.rtd",,"ContractData",A20,"NetLastTradeToday",,"T") -> 0.035 | I20: =RTD("cqg.rtd", ,"ContractData",A20, "T_CVol") -> 8134
A21: =RTD("cqg.rtd",,"ContractData",S6, "Symbol") -> SO3M25 | B21: =RIGHT(RTD("cqg.rtd",,"ContractData",A21, "LongDescription"),7) -> Jun 25 | C21: =RTD("cqg.rtd", ,"ContractData",A21, "Open",,"T") -> 96.255 | D21: =RTD("cqg.rtd", ,"ContractData",A21, "High",,"T") -> 96.375 | E21: =RTD("cqg.rtd", ,"ContractData",A21, "Low",,"T") -> 96.245 | F21: =RTD("cqg.rtd", ,"ContractData",A21, "LastTradeorSettle",,"T") -> 96.375 | G21: =RTD("cqg.rtd",,"ContractData",A21,"NetLastTradeToday",,"T") -> 0.035 | H21: =RTD("cqg.rtd",,"ContractData",A21,"NetLastTradeToday",,"T") -> 0.035 | I21: =RTD("cqg.rtd", ,"ContractData",A21, "T_CVol") -> 4840
A22: =RTD("cqg.rtd",,"ContractData",T6, "Symbol") -> SO3U25 | B22: =RIGHT(RTD("cqg.rtd",,"ContractData",A22, "LongDescription"),7) -> Sep 25 | C22: =RTD("cqg.rtd", ,"ContractData",A22, "Open",,"T") -> 96.3 | D22: =RTD("cqg.rtd", ,"ContractData",A22, "High",,"T") -> 96.43 | E22: =RTD("cqg.rtd", ,"ContractData",A22, "Low",,"T") -> 96.3 | F22: =RTD("cqg.rtd", ,"ContractData",A22, "LastTradeorSettle",,"T") -> 96.43 | G22: =RTD("cqg.rtd",,"ContractData",A22,"NetLastTradeToday",,"T") -> 0.035 | H22: =RTD("cqg.rtd",,"ContractData",A22,"NetLastTradeToday",,"T") -> 0.035 | I22: =RTD("cqg.rtd", ,"ContractData",A22, "T_CVol") -> 5708
A23: =RTD("cqg.rtd",,"ContractData",U6, "Symbol") -> SO3Z25 | B23: =RIGHT(RTD("cqg.rtd",,"ContractData",A23, "LongDescription"),7) -> Dec 25 | C23: =RTD("cqg.rtd", ,"ContractData",A23, "Open",,"T") -> 96.365 | D23: =RTD("cqg.rtd", ,"ContractData",A23, "High",,"T") -> 96.49 | E23: =RTD("cqg.rtd", ,"ContractData",A23, "Low",,"T") -> 96.365 | F23: =RTD("cqg.rtd", ,"ContractData",A23, "LastTradeorSettle",,"T") -> 96.485 | G23: =RTD("cqg.rtd",,"ContractData",A23,"NetLastTradeToday",,"T") -> 0.03 | H23: =RTD("cqg.rtd",,"ContractData",A23,"NetLastTradeToday",,"T") -> 0.03 | I23: =RTD("cqg.rtd", ,"ContractData",A23, "T_CVol") -> 5156
A24: =RTD("cqg.rtd",,"ContractData",V6, "Symbol") -> SO3H26 | B24: =RIGHT(RTD("cqg.rtd",,"ContractData",A24, "LongDescription"),7) -> Mar 26 | C24: =RTD("cqg.rtd", ,"ContractData",A24, "Open",,"T") -> 96.415 | D24: =RTD("cqg.rtd", ,"ContractData",A24, "High",,"T") -> 96.525 | E24: =RTD("cqg.rtd", ,"ContractData",A24, "Low",,"T") -> 96.415 | F24: =RTD("cqg.rtd", ,"ContractData",A24, "LastTradeorSettle",,"T") -> 96.525 | G24: =RTD("cqg.rtd",,"ContractData",A24,"NetLastTradeToday",,"T") -> 0.02 | H24: =RTD("cqg.rtd",,"ContractData",A24,"NetLastTradeToday",,"T") -> 0.02 | I24: =RTD("cqg.rtd", ,"ContractData",A24, "T_CVol") -> 3992
B25: Calendar Spread: | D25: 1-Qtr | G25: ='SO3'!Y24 -> 0.2 | H25: ='SO3'!Z24 -> -0.3
B26: =D25&" Calendar Spreads" -> 1-Qtr Calendar Spreads | K26: =RIGHT(RTD("cqg.rtd",,"ContractData",'SO3'!U35, "LongDescription"),15) -> Jun 23, Sep 23 | L26: =RIGHT(RTD("cqg.rtd",,"ContractData",'SO3'!U36, "LongDescription"),15) -> Sep 23, Dec 23 | M26: =RIGHT(RTD("cqg.rtd",,"ContractData",'SO3'!U37, "LongDescription"),15) -> Dec 23, Mar 24 | N26: =RIGHT(RTD("cqg.rtd",,"ContractData",'SO3'!U38, "LongDescription"),15) -> Mar 24, Jun 24 | O26: =RIGHT(RTD("cqg.rtd",,"ContractData",'SO3'!U39, "LongDescription"),15) -> Jun 24, Sep 24 | P26: =RIGHT(RTD("cqg.rtd",,"ContractData",'SO3'!U40, "LongDescription"),15) -> Sep 24, Dec 24 | Q26: =RIGHT(RTD("cqg.rtd",,"ContractData",'SO3'!U41, "LongDescription"),15) -> Dec 24, Mar 25 | R26: =RIGHT(RTD("cqg.rtd",,"ContractData",'SO3'!U42, "LongDescription"),15) -> Mar 25, Jun 25 | S26: =RIGHT(RTD("cqg.rtd",,"ContractData",'SO3'!U43, "LongDescription"),15) -> Jun 25, Sep 25 | T26: =RIGHT(RTD("cqg.rtd",,"ContractData",'SO3'!U44, "LongDescription"),15) -> Sep 25, Dec 25 | U26: =RIGHT(RTD("cqg.rtd",,"ContractData",'SO3'!U45, "LongDescription"),15) -> Dec 25, Mar 26 | V26: =RIGHT(RTD("cqg.rtd",,"ContractData",'SO3'!U46, "LongDescription"),15) -> Mar 26, Jun 26 | W26: =RIGHT(RTD("cqg.rtd",,"ContractData",'SO3'!U47, "LongDescription"),15) -> Jun 26, Sep 26 | X26: =RIGHT(RTD("cqg.rtd",,"ContractData",'SO3'!U48, "LongDescription"),15) -> Sep 26, Dec 26 | Y26: =RIGHT(RTD("cqg.rtd",,"ContractData",'SO3'!U49, "LongDescription"),15) -> Dec 26, Mar 27 | Z26: =RIGHT(RTD("cqg.rtd",,"ContractData",'SO3'!U50, "LongDescription"),15) -> Mar 27, Jun 27 | AA26: =RIGHT(RTD("cqg.rtd",,"ContractData",'SO3'!U51, "LongDescription"),15) -> Jun 27, Sep 27 | AB26: =IF(LEFT(RTD("cqg.rtd", ,"ContractData", 'SO3'!U52,"LongDescription",,"T"),3)="768","",RIGHT(RTD("cqg.rtd",,"ContractData",'SO3'!U52, "LongDescription"),15)) -> Sep 27, Dec 27 | AC26: =IF(LEFT(RTD("cqg.rtd", ,"ContractData", 'SO3'!U53,"LongDescription",,"T"),3)="768","",RIGHT(RTD("cqg.rtd",,"ContractData",'SO3'!U53, "LongDescription"),15)) -> Dec 27, Mar 28 | AD26: =IF(LEFT(RTD("cqg.rtd", ,"ContractData", 'SO3'!U54,"LongDescription",,"T"),3)="768","",RIGHT(RTD("cqg.rtd",,"ContractData",'SO3'!U54, "LongDescription"),15)) -> Mar 28, Jun 28
K27: =IF(RTD("cqg.rtd",,"ContractData",'SO3'!U35, "Ask")="","",TEXT(RTD("cqg.rtd",,"ContractData",'SO3'!U35, "Ask"),"#.000")&" "&"A") -> .030 A | L27: =IF(RTD("cqg.rtd",,"ContractData",'SO3'!U36,"Ask")="","",TEXT(RTD("cqg.rtd",,"ContractData",'SO3'!U36,"Ask"),"#.000")&" "&"A") -> -.130 A | M27: =IF(RTD("cqg.rtd",,"ContractData",'SO3'!U37,"Ask")="","",TEXT(RTD("cqg.rtd",,"ContractData",'SO3'!U37,"Ask"),"#.000")&" "&"A") -> -.225 A | N27: =IF(RTD("cqg.rtd",,"ContractData",'SO3'!U38,"Ask")="","",TEXT(RTD("cqg.rtd",,"ContractData",'SO3'!U38,"Ask"),"#.000")&" "&"A") -> -.225 A | O27: =IF(RTD("cqg.rtd",,"ContractData",'SO3'!U39,"Ask")="","",TEXT(RTD("cqg.rtd",,"ContractData",'SO3'!U39,"Ask"),"#.000")&" "&"A") -> -.155 A | P27: =IF(RTD("cqg.rtd",,"ContractData",'SO3'!U40,"Ask")="","",TEXT(RTD("cqg.rtd",,"ContractData",'SO3'!U40,"Ask"),"#.000")&" "&"A") -> -.080 A | Q27: =IF(RTD("cqg.rtd",,"ContractData",'SO3'!U41,"Ask")="","",TEXT(RTD("cqg.rtd",,"ContractData",'SO3'!U41,"Ask"),"#.000")&" "&"A") -> -.050 A | R27: =IF(RTD("cqg.rtd",,"ContractData",'SO3'!U42,"Ask")="","",TEXT(RTD("cqg.rtd",,"ContractData",'SO3'!U42,"Ask"),"#.000")&" "&"A") -> -.050 A | S27: =IF(RTD("cqg.rtd",,"ContractData",'SO3'!U43,"Ask")="","",TEXT(RTD("cqg.rtd",,"ContractData",'SO3'!U43,"Ask"),"#.000")&" "&"A") -> -.055 A | T27: =IF(RTD("cqg.rtd",,"ContractData",'SO3'!U44,"Ask")="","",TEXT(RTD("cqg.rtd",,"ContractData",'SO3'!U44,"Ask"),"#.000")&" "&"A") -> -.055 A | U27: =IF(RTD("cqg.rtd",,"ContractData",'SO3'!U45,"Ask")="","",TEXT(RTD("cqg.rtd",,"ContractData",'SO3'!U45,"Ask"),"#.000")&" "&"A") -> -.045 A | V27: =IF(RTD("cqg.rtd",,"ContractData",'SO3'!U46,"Ask")="","",TEXT(RTD("cqg.rtd",,"ContractData",'SO3'!U46,"Ask"),"#.000")&" "&"A") -> -.035 A | W27: =IF(RTD("cqg.rtd",,"ContractData",'SO3'!U47,"Ask")="","",TEXT(RTD("cqg.rtd",,"ContractData",'SO3'!U47,"Ask"),"#.000")&" "&"A") -> -.040 A | X27: =IF(RTD("cqg.rtd",,"ContractData",'SO3'!U48,"Ask")="","",TEXT(RTD("cqg.rtd",,"ContractData",'SO3'!U48,"Ask"),"#.000")&" "&"A") -> -.050 A | Y27: =IF(RTD("cqg.rtd",,"ContractData",'SO3'!U49,"Ask")="","",TEXT(RTD("cqg.rtd",,"ContractData",'SO3'!U49,"Ask"),"#.000")&" "&"A") -> -.050 A | Z27: =IF(RTD("cqg.rtd",,"ContractData",'SO3'!U50,"Ask")="","",TEXT(RTD("cqg.rtd",,"ContractData",'SO3'!U50,"Ask"),"#.000")&" "&"A") -> -.035 A | AA27: =IF(RTD("cqg.rtd",,"ContractData",'SO3'!U51,"Ask")="","",TEXT(RTD("cqg.rtd",,"ContractData",'SO3'!U51,"Ask"),"#.000")&" "&"A") -> -.030 A | AB27: =IF(RTD("cqg.rtd",,"ContractData",'SO3'!U52,"Ask")="","",TEXT(RTD("cqg.rtd",,"ContractData",'SO3'!U52,"Ask"),"#.000")&" "&"A") -> -.015 A | AC27: =IF(LEFT(RTD("cqg.rtd",,"ContractData",'SO3'!U53,"Ask"),3)="768","",IF(RTD("cqg.rtd",,"ContractData",'SO3'!U53,"Ask")="","",TEXT(RTD("cqg.rtd",,"ContractData",'SO3'!U53,"Ask"),"#.000")&" "&"A")) -> -.005 A | AD27: =IF(LEFT(RTD("cqg.rtd",,"ContractData",'SO3'!U54,"Ask"),3)="768","",IF(RTD("cqg.rtd",,"ContractData",'SO3'!U54,"Ask")="","",TEXT(RTD("cqg.rtd",,"ContractData",'SO3'!U54,"Ask"),"#.000")&" "&"A")) -> .005 A
B28: Symbols | C28: Open | D28: High | E28: Low | F28: Last | G28: Net | H28: Net | I28: Volume | K28: =IF(RTD("cqg.rtd",,"ContractData",'SO3'!U35, "Bid")="","",TEXT(RTD("cqg.rtd",,"ContractData",'SO3'!U35, "Bid"),"#.000")&" "&"B") -> .025 B | L28: =IF(RTD("cqg.rtd",,"ContractData",'SO3'!U36,"Bid")="","",TEXT(RTD("cqg.rtd",,"ContractData",'SO3'!U36,"Bid"),"#.000")&" "&"B") -> -.135 B | M28: =IF(RTD("cqg.rtd",,"ContractData",'SO3'!U37,"Bid")="","",TEXT(RTD("cqg.rtd",,"ContractData",'SO3'!U37,"Bid"),"#.000")&" "&"B") -> -.230 B | N28: =IF(RTD("cqg.rtd",,"ContractData",'SO3'!U38,"Bid")="","",TEXT(RTD("cqg.rtd",,"ContractData",'SO3'!U38,"Bid"),"#.000")&" "&"B") -> -.230 B | O28: =IF(RTD("cqg.rtd",,"ContractData",'SO3'!U39,"Bid")="","",TEXT(RTD("cqg.rtd",,"ContractData",'SO3'!U39,"Bid"),"#.000")&" "&"B") -> -.165 B | P28: =IF(RTD("cqg.rtd",,"ContractData",'SO3'!U40,"Bid")="","",TEXT(RTD("cqg.rtd",,"ContractData",'SO3'!U40,"Bid"),"#.000")&" "&"B") -> -.085 B | Q28: =IF(RTD("cqg.rtd",,"ContractData",'SO3'!U41,"Bid")="","",TEXT(RTD("cqg.rtd",,"ContractData",'SO3'!U41,"Bid"),"#.000")&" "&"B") -> -.060 B | R28: =IF(RTD("cqg.rtd",,"ContractData",'SO3'!U42,"Bid")="","",TEXT(RTD("cqg.rtd",,"ContractData",'SO3'!U42,"Bid"),"#.000")&" "&"B") -> -.055 B | S28: =IF(RTD("cqg.rtd",,"ContractData",'SO3'!U43,"Bid")="","",TEXT(RTD("cqg.rtd",,"ContractData",'SO3'!U43,"Bid"),"#.000")&" "&"B") -> -.060 B | T28: =IF(RTD("cqg.rtd",,"ContractData",'SO3'!U44,"Bid")="","",TEXT(RTD("cqg.rtd",,"ContractData",'SO3'!U44,"Bid"),"#.000")&" "&"B") -> -.060 B | U28: =IF(RTD("cqg.rtd",,"ContractData",'SO3'!U45,"Bid")="","",TEXT(RTD("cqg.rtd",,"ContractData",'SO3'!U45,"Bid"),"#.000")&" "&"B") -> -.050 B | V28: =IF(RTD("cqg.rtd",,"ContractData",'SO3'!U46,"Bid")="","",TEXT(RTD("cqg.rtd",,"ContractData",'SO3'!U46,"Bid"),"#.000")&" "&"B") -> -.040 B | W28: =IF(RTD("cqg.rtd",,"ContractData",'SO3'!U47,"Bid")="","",TEXT(RTD("cqg.rtd",,"ContractData",'SO3'!U47,"Bid"),"#.000")&" "&"B") -> -.045 B | X28: =IF(RTD("cqg.rtd",,"ContractData",'SO3'!U48,"Bid")="","",TEXT(RTD("cqg.rtd",,"ContractData",'SO3'!U48,"Bid"),"#.000")&" "&"B") -> -.055 B | Y28: =IF(RTD("cqg.rtd",,"ContractData",'SO3'!U49,"Bid")="","",TEXT(RTD("cqg.rtd",,"ContractData",'SO3'!U49,"Bid"),"#.000")&" "&"B") -> -.055 B | Z28: =IF(RTD("cqg.rtd",,"ContractData",'SO3'!U50,"Bid")="","",TEXT(RTD("cqg.rtd",,"ContractData",'SO3'!U50,"Bid"),"#.000")&" "&"B") -> -.045 B | AA28: =IF(RTD("cqg.rtd",,"ContractData",'SO3'!U51,"Bid")="","",TEXT(RTD("cqg.rtd",,"ContractData",'SO3'!U51,"Bid"),"#.000")&" "&"B") -> -.035 B | AB28: =IF(RTD("cqg.rtd",,"ContractData",'SO3'!U52,"Bid")="","",TEXT(RTD("cqg.rtd",,"ContractData",'SO3'!U52,"Bid"),"#.000")&" "&"B") -> -.025 B | AC28: =IF(LEFT(RTD("cqg.rtd",,"ContractData",'SO3'!U53,"Bid"),3)="768","",IF(RTD("cqg.rtd",,"ContractData",'SO3'!U53,"Bid")="","",TEXT(RTD("cqg.rtd",,"ContractData",'SO3'!U53,"Bid"),"#.000")&" "&"B")) -> -.020 B | AD28: =IF(LEFT(RTD("cqg.rtd",,"ContractData",'SO3'!U54,"Bid"),3)="768","",IF(RTD("cqg.rtd",,"ContractData",'SO3'!U54,"Bid")="","",TEXT(RTD("cqg.rtd",,"ContractData",'SO3'!U54,"Bid"),"#.000")&" "&"B")) -> -.020 B
A29: ='SO3'!U35 -> SO3S1?2 | B29: =RIGHT(RTD("cqg.rtd",,"ContractData",A29, "LongDescription"),15) -> Jun 23, Sep 23 | C29: =RTD("cqg.rtd", ,"ContractData",A29, "Open",,"T") -> 0.035 | D29: =RTD("cqg.rtd", ,"ContractData",A29, "High",,"T") -> 0.065 | E29: =RTD("cqg.rtd", ,"ContractData",A29, "Low",,"T") -> 0.025 | F29: =RTD("cqg.rtd", ,"ContractData",A29, "LastTradeorSettle",,"T") -> 0.025 | G29: =RTD("cqg.rtd",,"ContractData",A29,"NetLastTradeToday",,"T") -> 0 | H29: =RTD("cqg.rtd",,"ContractData",A29,"NetLastTradeToday",,"T") -> 0 | I29: =RTD("cqg.rtd", ,"ContractData",A29, "T_CVol") -> 2945 | K29: =IF(RTD("cqg.rtd", ,"ContractData",'SO3'!U35,"LastTradeorSettle",,"T")="","",TEXT(RTD("cqg.rtd", ,"ContractData",'SO3'!U35,"LastTradeorSettle",,"T"),"#.000")&" "&"L") -> .025 L | L29: =IF(RTD("cqg.rtd", ,"ContractData",'SO3'!U36,"LastTradeorSettle",,"T")="","",TEXT(RTD("cqg.rtd", ,"ContractData",'SO3'!U36,"LastTradeorSettle",,"T"),"#.000")&" "&"L") -> -.130 L | M29: =IF(RTD("cqg.rtd", ,"ContractData",'SO3'!U37,"LastTradeorSettle",,"T")="","",TEXT(RTD("cqg.rtd", ,"ContractData",'SO3'!U37,"LastTradeorSettle",,"T"),"#.000")&" "&"L") -> -.230 L | N29: =IF(RTD("cqg.rtd", ,"ContractData",'SO3'!U38,"LastTradeorSettle",,"T")="","",TEXT(RTD("cqg.rtd", ,"ContractData",'SO3'!U38,"LastTradeorSettle",,"T"),"#.000")&" "&"L") -> -.225 L | O29: =IF(RTD("cqg.rtd", ,"ContractData",'SO3'!U39,"LastTradeorSettle",,"T")="","",TEXT(RTD("cqg.rtd", ,"ContractData",'SO3'!U39,"LastTradeorSettle",,"T"),"#.000")&" "&"L") -> -.160 L | P29: =IF(RTD("cqg.rtd", ,"ContractData",'SO3'!U40,"LastTradeorSettle",,"T")="","",TEXT(RTD("cqg.rtd", ,"ContractData",'SO3'!U40,"LastTradeorSettle",,"T"),"#.000")&" "&"L") -> -.080 L | Q29: =IF(RTD("cqg.rtd", ,"ContractData",'SO3'!U41,"LastTradeorSettle",,"T")="","",TEXT(RTD("cqg.rtd", ,"ContractData",'SO3'!U41,"LastTradeorSettle",,"T"),"#.000")&" "&"L") -> -.055 L | R29: =IF(RTD("cqg.rtd", ,"ContractData",'SO3'!U42,"LastTradeorSettle",,"T")="","",TEXT(RTD("cqg.rtd", ,"ContractData",'SO3'!U42,"LastTradeorSettle",,"T"),"#.000")&" "&"L") -> -.055 L | S29: =IF(RTD("cqg.rtd", ,"ContractData",'SO3'!U43,"LastTradeorSettle",,"T")="","",TEXT(RTD("cqg.rtd", ,"ContractData",'SO3'!U43,"LastTradeorSettle",,"T"),"#.000")&" "&"L") -> -.055 L | T29: =IF(RTD("cqg.rtd", ,"ContractData",'SO3'!U44,"LastTradeorSettle",,"T")="","",TEXT(RTD("cqg.rtd", ,"ContractData",'SO3'!U44,"LastTradeorSettle",,"T"),"#.000")&" "&"L") -> -.055 L | U29: =IF(RTD("cqg.rtd", ,"ContractData",'SO3'!U45,"LastTradeorSettle",,"T")="","",TEXT(RTD("cqg.rtd", ,"ContractData",'SO3'!U45,"LastTradeorSettle",,"T"),"#.000")&" "&"L") -> -.050 L | V29: =IF(RTD("cqg.rtd", ,"ContractData",'SO3'!U46,"LastTradeorSettle",,"T")="","",TEXT(RTD("cqg.rtd", ,"ContractData",'SO3'!U46,"LastTradeorSettle",,"T"),"#.000")&" "&"L") -> -.040 L | W29: =IF(RTD("cqg.rtd", ,"ContractData",'SO3'!U47,"LastTradeorSettle",,"T")="","",TEXT(RTD("cqg.rtd", ,"ContractData",'SO3'!U47,"LastTradeorSettle",,"T"),"#.000")&" "&"L") -> -.040 L | X29: =IF(RTD("cqg.rtd", ,"ContractData",'SO3'!U48,"LastTradeorSettle",,"T")="","",TEXT(RTD("cqg.rtd", ,"ContractData",'SO3'!U48,"LastTradeorSettle",,"T"),"#.000")&" "&"L") -> -.050 L | Y29: =IF(RTD("cqg.rtd", ,"ContractData",'SO3'!U49,"LastTradeorSettle",,"T")="","",TEXT(RTD("cqg.rtd", ,"ContractData",'SO3'!U49,"LastTradeorSettle",,"T"),"#.000")&" "&"L") -> -.055 L | Z29: =IF(RTD("cqg.rtd", ,"ContractData",'SO3'!U50,"LastTradeorSettle",,"T")="","",TEXT(RTD("cqg.rtd", ,"ContractData",'SO3'!U50,"LastTradeorSettle",,"T"),"#.000")&" "&"L") -> -.040 L | AA29: =IF(RTD("cqg.rtd", ,"ContractData",'SO3'!U51,"LastTradeorSettle",,"T")="","",TEXT(RTD("cqg.rtd", ,"ContractData",'SO3'!U51,"LastTradeorSettle",,"T"),"#.000")&" "&"L") -> -.035 L | AB29: =IF(LEFT(RTD("cqg.rtd",,"ContractData",'SO3'!U52,"LastTradeorSettle"),3)="768","",IF(RTD("cqg.rtd",,"ContractData",'SO3'!U52,"LastTradeorSettle")="","",TEXT(RTD("cqg.rtd",,"ContractData",'SO3'!U52,"LastTradeorSettle"),"#.000")&" "&"L")) -> -.020 L | AC29: =IF(LEFT(RTD("cqg.rtd",,"ContractData",'SO3'!U53,"LastTradeorSettle"),3)="768","",IF(RTD("cqg.rtd",,"ContractData",'SO3'!U53,"LastTradeorSettle")="","",TEXT(RTD("cqg.rtd",,"ContractData",'SO3'!U53,"LastTradeorSettle"),"#.000")&" "&"L")) -> -.005 L | AD29: =IF(LEFT(RTD("cqg.rtd",,"ContractData",'SO3'!U54,"LastTradeorSettle"),3)="768","",IF(RTD("cqg.rtd",,"ContractData",'SO3'!U54,"LastTradeorSettle")="","",TEXT(RTD("cqg.rtd",,"ContractData",'SO3'!U54,"LastTradeorSettle"),"#.000")&" "&"L")) -> 
A30: ='SO3'!U36 -> SO3S1?3 | B30: =RIGHT(RTD("cqg.rtd",,"ContractData",A30, "LongDescription"),15) -> Sep 23, Dec 23 | C30: =RTD("cqg.rtd", ,"ContractData",A30, "Open",,"T") -> -0.13 | D30: =RTD("cqg.rtd", ,"ContractData",A30, "High",,"T") -> -0.105 | E30: =RTD("cqg.rtd", ,"ContractData",A30, "Low",,"T") -> -0.13 | F30: =RTD("cqg.rtd", ,"ContractData",A30, "LastTradeorSettle",,"T") -> -0.13 | G30: =RTD("cqg.rtd",,"ContractData",A30,"NetLastTradeToday",,"T") -> 0 | H30: =RTD("cqg.rtd",,"ContractData",A30,"NetLastTradeToday",,"T") -> 0 | I30: =RTD("cqg.rtd", ,"ContractData",A30, "T_CVol") -> 1921
A31: ='SO3'!U37 -> SO3S1?4 | B31: =RIGHT(RTD("cqg.rtd",,"ContractData",A31, "LongDescription"),15) -> Dec 23, Mar 24 | C31: =RTD("cqg.rtd", ,"ContractData",A31, "Open",,"T") -> -0.225 | D31: =RTD("cqg.rtd", ,"ContractData",A31, "High",,"T") -> -0.21 | E31: =RTD("cqg.rtd", ,"ContractData",A31, "Low",,"T") -> -0.23 | F31: =RTD("cqg.rtd", ,"ContractData",A31, "LastTradeorSettle",,"T") -> -0.23 | G31: =RTD("cqg.rtd",,"ContractData",A31,"NetLastTradeToday",,"T") -> -0.005 | H31: =RTD("cqg.rtd",,"ContractData",A31,"NetLastTradeToday",,"T") -> -0.005 | I31: =RTD("cqg.rtd", ,"ContractData",A31, "T_CVol") -> 1646
A32: ='SO3'!U38 -> SO3S1?5 | B32: =RIGHT(RTD("cqg.rtd",,"ContractData",A32, "LongDescription"),15) -> Mar 24, Jun 24 | C32: =RTD("cqg.rtd", ,"ContractData",A32, "Open",,"T") -> -0.23 | D32: =RTD("cqg.rtd", ,"ContractData",A32, "High",,"T") -> -0.225 | E32: =RTD("cqg.rtd", ,"ContractData",A32, "Low",,"T") -> -0.23 | F32: =RTD("cqg.rtd", ,"ContractData",A32, "LastTradeorSettle",,"T") -> -0.225 | G32: =RTD("cqg.rtd",,"ContractData",A32,"NetLastTradeToday",,"T") -> 0.005 | H32: =RTD("cqg.rtd",,"ContractData",A32,"NetLastTradeToday",,"T") -> 0.005 | I32: =RTD("cqg.rtd", ,"ContractData",A32, "T_CVol") -> 2456
A33: ='SO3'!U39 -> SO3S1?6 | B33: =RIGHT(RTD("cqg.rtd",,"ContractData",A33, "LongDescription"),15) -> Jun 24, Sep 24 | C33: =RTD("cqg.rtd", ,"ContractData",A33, "Open",,"T") -> -0.16 | D33: =RTD("cqg.rtd", ,"ContractData",A33, "High",,"T") -> -0.155 | E33: =RTD("cqg.rtd", ,"ContractData",A33, "Low",,"T") -> -0.17 | F33: =RTD("cqg.rtd", ,"ContractData",A33, "LastTradeorSettle",,"T") -> -0.16 | G33: =RTD("cqg.rtd",,"ContractData",A33,"NetLastTradeToday",,"T") -> 0 | H33: =RTD("cqg.rtd",,"ContractData",A33,"NetLastTradeToday",,"T") -> 0 | I33: =RTD("cqg.rtd", ,"ContractData",A33, "T_CVol") -> 1542
A34: ='SO3'!U40 -> SO3S1?7 | B34: =RIGHT(RTD("cqg.rtd",,"ContractData",A34, "LongDescription"),15) -> Sep 24, Dec 24 | C34: =RTD("cqg.rtd", ,"ContractData",A34, "Open",,"T") -> -0.08 | D34: =RTD("cqg.rtd", ,"ContractData",A34, "High",,"T") -> -0.075 | E34: =RTD("cqg.rtd", ,"ContractData",A34, "Low",,"T") -> -0.085 | F34: =RTD("cqg.rtd", ,"ContractData",A34, "LastTradeorSettle",,"T") -> -0.08 | G34: =RTD("cqg.rtd",,"ContractData",A34,"NetLastTradeToday",,"T") -> -0.005 | H34: =RTD("cqg.rtd",,"ContractData",A34,"NetLastTradeToday",,"T") -> -0.005 | I34: =RTD("cqg.rtd", ,"ContractData",A34, "T_CVol") -> 1489
A35: ='SO3'!U41 -> SO3S1?8 | B35: =RIGHT(RTD("cqg.rtd",,"ContractData",A35, "LongDescription"),15) -> Dec 24, Mar 25 | C35: =RTD("cqg.rtd", ,"ContractData",A35, "Open",,"T") -> -0.055 | D35: =RTD("cqg.rtd", ,"ContractData",A35, "High",,"T") -> -0.05 | E35: =RTD("cqg.rtd", ,"ContractData",A35, "Low",,"T") -> -0.06 | F35: =RTD("cqg.rtd", ,"ContractData",A35, "LastTradeorSettle",,"T") -> -0.055 | G35: =RTD("cqg.rtd",,"ContractData",A35,"NetLastTradeToday",,"T") -> -0.005 | H35: =RTD("cqg.rtd",,"ContractData",A35,"NetLastTradeToday",,"T") -> -0.005 | I35: =RTD("cqg.rtd", ,"ContractData",A35, "T_CVol") -> 1121
A36: ='SO3'!U42 -> SO3S1?9 | B36: =RIGHT(RTD("cqg.rtd",,"ContractData",A36, "LongDescription"),15) -> Mar 25, Jun 25 | C36: =RTD("cqg.rtd", ,"ContractData",A36, "Open",,"T") -> -0.05 | D36: =RTD("cqg.rtd", ,"ContractData",A36, "High",,"T") -> -0.05 | E36: =RTD("cqg.rtd", ,"ContractData",A36, "Low",,"T") -> -0.065 | F36: =RTD("cqg.rtd", ,"ContractData",A36, "LastTradeorSettle",,"T") -> -0.055 | G36: =RTD("cqg.rtd",,"ContractData",A36,"NetLastTradeToday",,"T") -> -0.005 | H36: =RTD("cqg.rtd",,"ContractData",A36,"NetLastTradeToday",,"T") -> -0.005 | I36: =RTD("cqg.rtd", ,"ContractData",A36, "T_CVol") -> 1088
A37: ='SO3'!U43 -> SO3S1?10 | B37: =RIGHT(RTD("cqg.rtd",,"ContractData",A37, "LongDescription"),15) -> Jun 25, Sep 25 | C37: =RTD("cqg.rtd", ,"ContractData",A37, "Open",,"T") -> -0.06 | D37: =RTD("cqg.rtd", ,"ContractData",A37, "High",,"T") -> -0.055 | E37: =RTD("cqg.rtd", ,"ContractData",A37, "Low",,"T") -> -0.065 | F37: =RTD("cqg.rtd", ,"ContractData",A37, "LastTradeorSettle",,"T") -> -0.055 | G37: =RTD("cqg.rtd",,"ContractData",A37,"NetLastTradeToday",,"T") -> 0 | H37: =RTD("cqg.rtd",,"ContractData",A37,"NetLastTradeToday",,"T") -> 0 | I37: =RTD("cqg.rtd", ,"ContractData",A37, "T_CVol") -> 718
A38: ='SO3'!U44 -> SO3S1?11 | B38: =RIGHT(RTD("cqg.rtd",,"ContractData",A38, "LongDescription"),15) -> Sep 25, Dec 25 | C38: =RTD("cqg.rtd", ,"ContractData",A38, "Open",,"T") -> -0.065 | D38: =RTD("cqg.rtd", ,"ContractData",A38, "High",,"T") -> -0.055 | E38: =RTD("cqg.rtd", ,"ContractData",A38, "Low",,"T") -> -0.065 | F38: =RTD("cqg.rtd", ,"ContractData",A38, "LastTradeorSettle",,"T") -> -0.055 | G38: =RTD("cqg.rtd",,"ContractData",A38,"NetLastTradeToday",,"T") -> 0.005 | H38: =RTD("cqg.rtd",,"ContractData",A38,"NetLastTradeToday",,"T") -> 0.005 | I38: =RTD("cqg.rtd", ,"ContractData",A38, "T_CVol") -> 1629
A39: ='SO3'!U45 -> SO3S1?12 | B39: =RIGHT(RTD("cqg.rtd",,"ContractData",A39, "LongDescription"),15) -> Dec 25, Mar 26 | C39: =RTD("cqg.rtd", ,"ContractData",A39, "Open",,"T") -> -0.05 | D39: =RTD("cqg.rtd", ,"ContractData",A39, "High",,"T") -> -0.05 | E39: =RTD("cqg.rtd", ,"ContractData",A39, "Low",,"T") -> -0.055 | F39: =RTD("cqg.rtd", ,"ContractData",A39, "LastTradeorSettle",,"T") -> -0.05 | G39: =RTD("cqg.rtd",,"ContractData",A39,"NetLastTradeToday",,"T") -> 0 | H39: =RTD("cqg.rtd",,"ContractData",A39,"NetLastTradeToday",,"T") -> 0 | I39: =RTD("cqg.rtd", ,"ContractData",A39, "T_CVol") -> 877
A40: ='SO3'!U46 -> SO3S1?13 | B40: =RIGHT(RTD("cqg.rtd",,"ContractData",A40, "LongDescription"),15) -> Mar 26, Jun 26 | C40: =RTD("cqg.rtd", ,"ContractData",A40, "Open",,"T") -> -0.045 | D40: =RTD("cqg.rtd", ,"ContractData",A40, "High",,"T") -> -0.04 | E40: =RTD("cqg.rtd", ,"ContractData",A40, "Low",,"T") -> -0.045 | F40: =RTD("cqg.rtd", ,"ContractData",A40, "LastTradeorSettle",,"T") -> -0.04 | G40: =RTD("cqg.rtd",,"ContractData",A40,"NetLastTradeToday",,"T") -> 0 | H40: =RTD("cqg.rtd",,"ContractData",A40,"NetLastTradeToday",,"T") -> 0 | I40: =RTD("cqg.rtd", ,"ContractData",A40, "T_CVol") -> 565
B41: Calendar Spread: | D41: 2-Qtr | G41: ='SO3'!AH24 -> 0.2 | H41: ='SO3'!AI24 -> -0.5
B42: =D41&" Calendar Spreads" -> 2-Qtr Calendar Spreads | K42: =RIGHT(RTD("cqg.rtd",,"ContractData",'SO3'!AF35, "LongDescription"),15) -> Jun 23, Dec 23 | L42: =RIGHT(RTD("cqg.rtd",,"ContractData",'SO3'!AF36, "LongDescription"),15) -> Sep 23, Mar 24 | M42: =RIGHT(RTD("cqg.rtd",,"ContractData",'SO3'!AF37, "LongDescription"),15) -> Dec 23, Jun 24 | N42: =RIGHT(RTD("cqg.rtd",,"ContractData",'SO3'!AF38, "LongDescription"),15) -> Mar 24, Sep 24 | O42: =RIGHT(RTD("cqg.rtd",,"ContractData",'SO3'!AF39, "LongDescription"),15) -> Jun 24, Dec 24 | P42: =RIGHT(RTD("cqg.rtd",,"ContractData",'SO3'!AF40, "LongDescription"),15) -> Sep 24, Mar 25 | Q42: =RIGHT(RTD("cqg.rtd",,"ContractData",'SO3'!AF41, "LongDescription"),15) -> Dec 24, Jun 25 | R42: =RIGHT(RTD("cqg.rtd",,"ContractData",'SO3'!AF42, "LongDescription"),15) -> Mar 25, Sep 25 | S42: =RIGHT(RTD("cqg.rtd",,"ContractData",'SO3'!AF43, "LongDescription"),15) -> Jun 25, Dec 25 | T42: =RIGHT(RTD("cqg.rtd",,"ContractData",'SO3'!AF44, "LongDescription"),15) -> Sep 25, Mar 26 | U42: =RIGHT(RTD("cqg.rtd",,"ContractData",'SO3'!AF45, "LongDescription"),15) -> Dec 25, Jun 26 | V42: =RIGHT(RTD("cqg.rtd",,"ContractData",'SO3'!AF46, "LongDescription"),15) -> Mar 26, Sep 26 | W42: =RIGHT(RTD("cqg.rtd",,"ContractData",'SO3'!AF47, "LongDescription"),15) -> Jun 26, Dec 26 | X42: =RIGHT(RTD("cqg.rtd",,"ContractData",'SO3'!AF48, "LongDescription"),15) -> Sep 26, Mar 27 | Y42: =RIGHT(RTD("cqg.rtd",,"ContractData",'SO3'!AF49, "LongDescription"),15) -> Dec 26, Jun 27 | Z42: =RIGHT(RTD("cqg.rtd",,"ContractData",'SO3'!AF50, "LongDescription"),15) -> Mar 27, Sep 27 | AA42: =RIGHT(RTD("cqg.rtd",,"ContractData",'SO3'!AF51, "LongDescription"),15) -> Jun 27, Dec 27 | AB42: =RIGHT(RTD("cqg.rtd",,"ContractData",'SO3'!AF52, "LongDescription"),15) -> Sep 27, Mar 28 | AC42: =IF(LEFT(RTD("cqg.rtd", ,"ContractData", 'SO3'!AF53,"LongDescription",,"T"),3)="768","",RIGHT(RTD("cqg.rtd",,"ContractData",'SO3'!AF53, "LongDescription"),15)) -> Dec 27, Jun 28 | AD42: =IF(LEFT(RTD("cqg.rtd", ,"ContractData", 'SO3'!AF54,"LongDescription",,"T"),3)="768","",RIGHT(RTD("cqg.rtd",,"ContractData",'SO3'!AF54, "LongDescription"),15)) -> Mar 28, Sep 28
K43: =IF(RTD("cqg.rtd",,"ContractData",'SO3'!AF35, "Ask")="","",TEXT(RTD("cqg.rtd",,"ContractData",'SO3'!AF35, "Ask"),"#.000")&" "&"A") -> -.100 A | L43: =IF(RTD("cqg.rtd",,"ContractData",'SO3'!AF36, "Ask")="","",TEXT(RTD("cqg.rtd",,"ContractData",'SO3'!AF36, "Ask"),"#.000")&" "&"A") -> -.355 A | M43: =IF(RTD("cqg.rtd",,"ContractData",'SO3'!AF37, "Ask")="","",TEXT(RTD("cqg.rtd",,"ContractData",'SO3'!AF37, "Ask"),"#.000")&" "&"A") -> -.450 A | N43: =IF(RTD("cqg.rtd",,"ContractData",'SO3'!AF38, "Ask")="","",TEXT(RTD("cqg.rtd",,"ContractData",'SO3'!AF38, "Ask"),"#.000")&" "&"A") -> -.385 A | O43: =IF(RTD("cqg.rtd",,"ContractData",'SO3'!AF39, "Ask")="","",TEXT(RTD("cqg.rtd",,"ContractData",'SO3'!AF39, "Ask"),"#.000")&" "&"A") -> -.240 A | P43: =IF(RTD("cqg.rtd",,"ContractData",'SO3'!AF40, "Ask")="","",TEXT(RTD("cqg.rtd",,"ContractData",'SO3'!AF40, "Ask"),"#.000")&" "&"A") -> -.135 A | Q43: =IF(RTD("cqg.rtd",,"ContractData",'SO3'!AF41, "Ask")="","",TEXT(RTD("cqg.rtd",,"ContractData",'SO3'!AF41, "Ask"),"#.000")&" "&"A") -> -.105 A | R43: =IF(RTD("cqg.rtd",,"ContractData",'SO3'!AF42, "Ask")="","",TEXT(RTD("cqg.rtd",,"ContractData",'SO3'!AF42, "Ask"),"#.000")&" "&"A") -> -.105 A | S43: =IF(RTD("cqg.rtd",,"ContractData",'SO3'!AF43, "Ask")="","",TEXT(RTD("cqg.rtd",,"ContractData",'SO3'!AF43, "Ask"),"#.000")&" "&"A") -> -.110 A | T43: =IF(RTD("cqg.rtd",,"ContractData",'SO3'!AF44, "Ask")="","",TEXT(RTD("cqg.rtd",,"ContractData",'SO3'!AF44, "Ask"),"#.000")&" "&"A") -> -.100 A | U43: =IF(RTD("cqg.rtd",,"ContractData",'SO3'!AF45, "Ask")="","",TEXT(RTD("cqg.rtd",,"ContractData",'SO3'!AF45, "Ask"),"#.000")&" "&"A") -> -.080 A | V43: =IF(RTD("cqg.rtd",,"ContractData",'SO3'!AF46, "Ask")="","",TEXT(RTD("cqg.rtd",,"ContractData",'SO3'!AF46, "Ask"),"#.000")&" "&"A") -> -.075 A | W43: =IF(RTD("cqg.rtd",,"ContractData",'SO3'!AF47, "Ask")="","",TEXT(RTD("cqg.rtd",,"ContractData",'SO3'!AF47, "Ask"),"#.000")&" "&"A") -> -.090 A | X43: =IF(RTD("cqg.rtd",,"ContractData",'SO3'!AF48, "Ask")="","",TEXT(RTD("cqg.rtd",,"ContractData",'SO3'!AF48, "Ask"),"#.000")&" "&"A") -> -.100 A | Y43: =IF(RTD("cqg.rtd",,"ContractData",'SO3'!AF49, "Ask")="","",TEXT(RTD("cqg.rtd",,"ContractData",'SO3'!AF49, "Ask"),"#.000")&" "&"A") -> -.090 A | Z43: =IF(RTD("cqg.rtd",,"ContractData",'SO3'!AF50, "Ask")="","",TEXT(RTD("cqg.rtd",,"ContractData",'SO3'!AF50, "Ask"),"#.000")&" "&"A") -> -.070 A | AA43: =IF(RTD("cqg.rtd",,"ContractData",'SO3'!AF51, "Ask")="","",TEXT(RTD("cqg.rtd",,"ContractData",'SO3'!AF51, "Ask"),"#.000")&" "&"A") -> -.045 A | AB43: =IF(RTD("cqg.rtd",,"ContractData",'SO3'!AF52, "Ask")="","",TEXT(RTD("cqg.rtd",,"ContractData",'SO3'!AF52, "Ask"),"#.000")&" "&"A") -> -.020 A | AC43: =IF(LEFT(RTD("cqg.rtd",,"ContractData",'SO3'!AF53,"Ask"),3)="768","",IF(RTD("cqg.rtd",,"ContractData",'SO3'!AF53,"Ask")="","",TEXT(RTD("cqg.rtd",,"ContractData",'SO3'!AF53,"Ask"),"#.000")&" "&"A")) -> .000 A | AD43: =IF(LEFT(RTD("cqg.rtd",,"ContractData",'SO3'!AF54,"Ask"),3)="768","",IF(RTD("cqg.rtd",,"ContractData",'SO3'!AF54,"Ask")="","",TEXT(RTD("cqg.rtd",,"ContractData",'SO3'!AF54,"Ask"),"#.000")&" "&"A")) -> .005 A
B44: Symbols | C44: Open | D44: High | E44: Low | F44: Last | G44: Net | H44: Net | I44: Volume | K44: =IF(RTD("cqg.rtd",,"ContractData",'SO3'!AF35, "Bid")="","",TEXT(RTD("cqg.rtd",,"ContractData",'SO3'!AF35, "Bid"),"#.000")&" "&"B") -> -.110 B | L44: =IF(RTD("cqg.rtd",,"ContractData",'SO3'!AF36, "Bid")="","",TEXT(RTD("cqg.rtd",,"ContractData",'SO3'!AF36, "Bid"),"#.000")&" "&"B") -> -.360 B | M44: =IF(RTD("cqg.rtd",,"ContractData",'SO3'!AF37, "Bid")="","",TEXT(RTD("cqg.rtd",,"ContractData",'SO3'!AF37, "Bid"),"#.000")&" "&"B") -> -.460 B | N44: =IF(RTD("cqg.rtd",,"ContractData",'SO3'!AF38, "Bid")="","",TEXT(RTD("cqg.rtd",,"ContractData",'SO3'!AF38, "Bid"),"#.000")&" "&"B") -> -.390 B | O44: =IF(RTD("cqg.rtd",,"ContractData",'SO3'!AF39, "Bid")="","",TEXT(RTD("cqg.rtd",,"ContractData",'SO3'!AF39, "Bid"),"#.000")&" "&"B") -> -.245 B | P44: =IF(RTD("cqg.rtd",,"ContractData",'SO3'!AF40, "Bid")="","",TEXT(RTD("cqg.rtd",,"ContractData",'SO3'!AF40, "Bid"),"#.000")&" "&"B") -> -.140 B | Q44: =IF(RTD("cqg.rtd",,"ContractData",'SO3'!AF41, "Bid")="","",TEXT(RTD("cqg.rtd",,"ContractData",'SO3'!AF41, "Bid"),"#.000")&" "&"B") -> -.110 B | R44: =IF(RTD("cqg.rtd",,"ContractData",'SO3'!AF42, "Bid")="","",TEXT(RTD("cqg.rtd",,"ContractData",'SO3'!AF42, "Bid"),"#.000")&" "&"B") -> -.115 B | S44: =IF(RTD("cqg.rtd",,"ContractData",'SO3'!AF43, "Bid")="","",TEXT(RTD("cqg.rtd",,"ContractData",'SO3'!AF43, "Bid"),"#.000")&" "&"B") -> -.115 B | T44: =IF(RTD("cqg.rtd",,"ContractData",'SO3'!AF44, "Bid")="","",TEXT(RTD("cqg.rtd",,"ContractData",'SO3'!AF44, "Bid"),"#.000")&" "&"B") -> -.105 B | U44: =IF(RTD("cqg.rtd",,"ContractData",'SO3'!AF45, "Bid")="","",TEXT(RTD("cqg.rtd",,"ContractData",'SO3'!AF45, "Bid"),"#.000")&" "&"B") -> -.090 B | V44: =IF(RTD("cqg.rtd",,"ContractData",'SO3'!AF46, "Bid")="","",TEXT(RTD("cqg.rtd",,"ContractData",'SO3'!AF46, "Bid"),"#.000")&" "&"B") -> -.080 B | W44: =IF(RTD("cqg.rtd",,"ContractData",'SO3'!AF47, "Bid")="","",TEXT(RTD("cqg.rtd",,"ContractData",'SO3'!AF47, "Bid"),"#.000")&" "&"B") -> -.095 B | X44: =IF(RTD("cqg.rtd",,"ContractData",'SO3'!AF48, "Bid")="","",TEXT(RTD("cqg.rtd",,"ContractData",'SO3'!AF48, "Bid"),"#.000")&" "&"B") -> -.110 B | Y44: =IF(RTD("cqg.rtd",,"ContractData",'SO3'!AF49, "Bid")="","",TEXT(RTD("cqg.rtd",,"ContractData",'SO3'!AF49, "Bid"),"#.000")&" "&"B") -> -.095 B | Z44: =IF(RTD("cqg.rtd",,"ContractData",'SO3'!AF50, "Bid")="","",TEXT(RTD("cqg.rtd",,"ContractData",'SO3'!AF50, "Bid"),"#.000")&" "&"B") -> -.080 B | AA44: =IF(RTD("cqg.rtd",,"ContractData",'SO3'!AF51, "Bid")="","",TEXT(RTD("cqg.rtd",,"ContractData",'SO3'!AF51, "Bid"),"#.000")&" "&"B") -> -.055 B | AB44: =IF(RTD("cqg.rtd",,"ContractData",'SO3'!AF52, "Bid")="","",TEXT(RTD("cqg.rtd",,"ContractData",'SO3'!AF52, "Bid"),"#.000")&" "&"B") -> -.045 B | AC44: =IF(LEFT(RTD("cqg.rtd",,"ContractData",'SO3'!AF53,"Bid"),3)="768","",IF(RTD("cqg.rtd",,"ContractData",'SO3'!AF53,"Bid")="","",TEXT(RTD("cqg.rtd",,"ContractData",'SO3'!AF53,"Bid"),"#.000")&" "&"B")) -> -.040 B | AD44: =IF(LEFT(RTD("cqg.rtd",,"ContractData",'SO3'!AF54,"Bid"),3)="768","",IF(RTD("cqg.rtd",,"ContractData",'SO3'!AF54,"Bid")="","",TEXT(RTD("cqg.rtd",,"ContractData",'SO3'!AF54,"Bid"),"#.000")&" "&"B")) -> -.035 B
A45: =RTD("cqg.rtd",,"ContractData",'SO3'!AF35, "Symbol") -> SO3S2M23 | B45: =RIGHT(RTD("cqg.rtd",,"ContractData",A45, "LongDescription"),15) -> Jun 23, Dec 23 | C45: =RTD("cqg.rtd", ,"ContractData",A45, "Open",,"T") -> -0.055 | D45: =RTD("cqg.rtd", ,"ContractData",A45, "High",,"T") -> -0.04 | E45: =RTD("cqg.rtd", ,"ContractData",A45, "Low",,"T") -> -0.105 | F45: =RTD("cqg.rtd", ,"ContractData",A45, "LastTradeorSettle",,"T") -> -0.105 | G45: =RTD("cqg.rtd",,"ContractData",A45,"NetLastTradeToday",,"T") -> -0.005 | H45: =RTD("cqg.rtd",,"ContractData",A45,"NetLastTradeToday",,"T") -> -0.005 | I45: =RTD("cqg.rtd", ,"ContractData",A45, "T_CVol") -> 1068 | K45: =IF(RTD("cqg.rtd", ,"ContractData",'SO3'!AF35,"LastTradeorSettle",,"T")="","",TEXT(RTD("cqg.rtd", ,"ContractData",'SO3'!AF35,"LastTradeorSettle",,"T"),"#.000")&" "&"L") -> -.105 L | L45: =IF(RTD("cqg.rtd", ,"ContractData",'SO3'!AF36,"LastTradeorSettle",,"T")="","",TEXT(RTD("cqg.rtd", ,"ContractData",'SO3'!AF36,"LastTradeorSettle",,"T"),"#.000")&" "&"L") -> -.360 L | M45: =IF(RTD("cqg.rtd", ,"ContractData",'SO3'!AF37,"LastTradeorSettle",,"T")="","",TEXT(RTD("cqg.rtd", ,"ContractData",'SO3'!AF37,"LastTradeorSettle",,"T"),"#.000")&" "&"L") -> -.455 L | N45: =IF(RTD("cqg.rtd", ,"ContractData",'SO3'!AF38,"LastTradeorSettle",,"T")="","",TEXT(RTD("cqg.rtd", ,"ContractData",'SO3'!AF38,"LastTradeorSettle",,"T"),"#.000")&" "&"L") -> -.390 L | O45: =IF(RTD("cqg.rtd", ,"ContractData",'SO3'!AF39,"LastTradeorSettle",,"T")="","",TEXT(RTD("cqg.rtd", ,"ContractData",'SO3'!AF39,"LastTradeorSettle",,"T"),"#.000")&" "&"L") -> -.245 L | P45: =IF(RTD("cqg.rtd", ,"ContractData",'SO3'!AF40,"LastTradeorSettle",,"T")="","",TEXT(RTD("cqg.rtd", ,"ContractData",'SO3'!AF40,"LastTradeorSettle",,"T"),"#.000")&" "&"L") -> -.140 L | Q45: =IF(RTD("cqg.rtd", ,"ContractData",'SO3'!AF41,"LastTradeorSettle",,"T")="","",TEXT(RTD("cqg.rtd", ,"ContractData",'SO3'!AF41,"LastTradeorSettle",,"T"),"#.000")&" "&"L") -> -.110 L | R45: =IF(RTD("cqg.rtd", ,"ContractData",'SO3'!AF42,"LastTradeorSettle",,"T")="","",TEXT(RTD("cqg.rtd", ,"ContractData",'SO3'!AF42,"LastTradeorSettle",,"T"),"#.000")&" "&"L") -> -.110 L | S45: =IF(RTD("cqg.rtd", ,"ContractData",'SO3'!AF43,"LastTradeorSettle",,"T")="","",TEXT(RTD("cqg.rtd", ,"ContractData",'SO3'!AF43,"LastTradeorSettle",,"T"),"#.000")&" "&"L") -> -.115 L | T45: =IF(RTD("cqg.rtd", ,"ContractData",'SO3'!AF44,"LastTradeorSettle",,"T")="","",TEXT(RTD("cqg.rtd", ,"ContractData",'SO3'!AF44,"LastTradeorSettle",,"T"),"#.000")&" "&"L") -> -.105 L | U45: =IF(RTD("cqg.rtd", ,"ContractData",'SO3'!AF45,"LastTradeorSettle",,"T")="","",TEXT(RTD("cqg.rtd", ,"ContractData",'SO3'!AF45,"LastTradeorSettle",,"T"),"#.000")&" "&"L") -> -.085 L | V45: =IF(RTD("cqg.rtd", ,"ContractData",'SO3'!AF46,"LastTradeorSettle",,"T")="","",TEXT(RTD("cqg.rtd", ,"ContractData",'SO3'!AF46,"LastTradeorSettle",,"T"),"#.000")&" "&"L") -> -.080 L | W45: =IF(RTD("cqg.rtd", ,"ContractData",'SO3'!AF47,"LastTradeorSettle",,"T")="","",TEXT(RTD("cqg.rtd", ,"ContractData",'SO3'!AF47,"LastTradeorSettle",,"T"),"#.000")&" "&"L") -> -.095 L | X45: =IF(RTD("cqg.rtd", ,"ContractData",'SO3'!AF48,"LastTradeorSettle",,"T")="","",TEXT(RTD("cqg.rtd", ,"ContractData",'SO3'!AF48,"LastTradeorSettle",,"T"),"#.000")&" "&"L") -> -.105 L | Y45: =IF(RTD("cqg.rtd", ,"ContractData",'SO3'!AF49,"LastTradeorSettle",,"T")="","",TEXT(RTD("cqg.rtd", ,"ContractData",'SO3'!AF49,"LastTradeorSettle",,"T"),"#.000")&" "&"L") -> -.095 L | Z45: =IF(RTD("cqg.rtd", ,"ContractData",'SO3'!AF50,"LastTradeorSettle",,"T")="","",TEXT(RTD("cqg.rtd", ,"ContractData",'SO3'!AF50,"LastTradeorSettle",,"T"),"#.000")&" "&"L") -> -.075 L | AA45: =IF(RTD("cqg.rtd", ,"ContractData",'SO3'!AF51,"LastTradeorSettle",,"T")="","",TEXT(RTD("cqg.rtd", ,"ContractData",'SO3'!AF51,"LastTradeorSettle",,"T"),"#.000")&" "&"L") -> -.055 L | AB45: =IF(LEFT(RTD("cqg.rtd",,"ContractData",'SO3'!AF52,"LastTradeorSettle"),3)="768","",IF(RTD("cqg.rtd",,"ContractData",'SO3'!AF52,"LastTradeorSettle")="","",TEXT(RTD("cqg.rtd",,"ContractData",'SO3'!AF52,"LastTradeorSettle"),"#.000")&" "&"L")) ->  | AC45: =IF(LEFT(RTD("cqg.rtd",,"ContractData",'SO3'!AF53,"LastTradeorSettle"),3)="768","",IF(RTD("cqg.rtd",,"ContractData",'SO3'!AF53,"LastTradeorSettle")="","",TEXT(RTD("cqg.rtd",,"ContractData",'SO3'!AF53,"LastTradeorSettle"),"#.000")&" "&"L")) ->  | AD45: =IF(LEFT(RTD("cqg.rtd",,"ContractData",'SO3'!AF53,"LastTradeorSettle"),3)="768","",IF(RTD("cqg.rtd",,"ContractData",'SO3'!AF53,"LastTradeorSettle")="","",TEXT(RTD("cqg.rtd",,"ContractData",'SO3'!AF53,"LastTradeorSettle"),"#.000")&" "&"L")) -> 
A46: =RTD("cqg.rtd",,"ContractData",'SO3'!AF36, "Symbol") -> SO3S2U23 | B46: =RIGHT(RTD("cqg.rtd",,"ContractData",A46, "LongDescription"),15) -> Sep 23, Mar 24 | C46: =RTD("cqg.rtd", ,"ContractData",A46, "Open",,"T") -> -0.345 | D46: =RTD("cqg.rtd", ,"ContractData",A46, "High",,"T") -> -0.31 | E46: =RTD("cqg.rtd", ,"ContractData",A46, "Low",,"T") -> -0.36 | F46: =RTD("cqg.rtd", ,"ContractData",A46, "LastTradeorSettle",,"T") -> -0.36 | G46: =RTD("cqg.rtd",,"ContractData",A46,"NetLastTradeToday",,"T") -> -0.01 | H46: =RTD("cqg.rtd",,"ContractData",A46,"NetLastTradeToday",,"T") -> -0.01 | I46: =RTD("cqg.rtd", ,"ContractData",A46, "T_CVol") -> 396
A47: =RTD("cqg.rtd",,"ContractData",'SO3'!AF37, "Symbol") -> SO3S2Z23 | B47: =RIGHT(RTD("cqg.rtd",,"ContractData",A47, "LongDescription"),15) -> Dec 23, Jun 24 | C47: =RTD("cqg.rtd", ,"ContractData",A47, "Open",,"T") -> -0.45 | D47: =RTD("cqg.rtd", ,"ContractData",A47, "High",,"T") -> -0.43 | E47: =RTD("cqg.rtd", ,"ContractData",A47, "Low",,"T") -> -0.455 | F47: =RTD("cqg.rtd", ,"ContractData",A47, "LastTradeorSettle",,"T") -> -0.455 | G47: =RTD("cqg.rtd",,"ContractData",A47,"NetLastTradeToday",,"T") -> -0.005 | H47: =RTD("cqg.rtd",,"ContractData",A47,"NetLastTradeToday",,"T") -> -0.005 | I47: =RTD("cqg.rtd", ,"ContractData",A47, "T_CVol") -> 971
A48: =RTD("cqg.rtd",,"ContractData",'SO3'!AF38, "Symbol") -> SO3S2H24 | B48: =RIGHT(RTD("cqg.rtd",,"ContractData",A48, "LongDescription"),15) -> Mar 24, Sep 24 | C48: =RTD("cqg.rtd", ,"ContractData",A48, "Open",,"T") -> -0.385 | D48: =RTD("cqg.rtd", ,"ContractData",A48, "High",,"T") -> -0.385 | E48: =RTD("cqg.rtd", ,"ContractData",A48, "Low",,"T") -> -0.4 | F48: =RTD("cqg.rtd", ,"ContractData",A48, "LastTradeorSettle",,"T") -> -0.39 | G48: =RTD("cqg.rtd",,"ContractData",A48,"NetLastTradeToday",,"T") -> -0.005 | H48: =RTD("cqg.rtd",,"ContractData",A48,"NetLastTradeToday",,"T") -> -0.005 | I48: =RTD("cqg.rtd", ,"ContractData",A48, "T_CVol") -> 978
A49: =RTD("cqg.rtd",,"ContractData",'SO3'!AF39, "Symbol") -> SO3S2M24 | B49: =RIGHT(RTD("cqg.rtd",,"ContractData",A49, "LongDescription"),15) -> Jun 24, Dec 24 | C49: =RTD("cqg.rtd", ,"ContractData",A49, "Open",,"T") -> -0.235 | D49: =RTD("cqg.rtd", ,"ContractData",A49, "High",,"T") -> -0.235 | E49: =RTD("cqg.rtd", ,"ContractData",A49, "Low",,"T") -> -0.25 | F49: =RTD("cqg.rtd", ,"ContractData",A49, "LastTradeorSettle",,"T") -> -0.245 | G49: =RTD("cqg.rtd",,"ContractData",A49,"NetLastTradeToday",,"T") -> -0.01 | H49: =RTD("cqg.rtd",,"ContractData",A49,"NetLastTradeToday",,"T") -> -0.01 | I49: =RTD("cqg.rtd", ,"ContractData",A49, "T_CVol") -> 656
A50: =RTD("cqg.rtd",,"ContractData",'SO3'!AF40, "Symbol") -> SO3S2U24 | B50: =RIGHT(RTD("cqg.rtd",,"ContractData",A50, "LongDescription"),15) -> Sep 24, Mar 25 | C50: =RTD("cqg.rtd", ,"ContractData",A50, "Open",,"T") -> -0.13 | D50: =RTD("cqg.rtd", ,"ContractData",A50, "High",,"T") -> -0.13 | E50: =RTD("cqg.rtd", ,"ContractData",A50, "Low",,"T") -> -0.145 | F50: =RTD("cqg.rtd", ,"ContractData",A50, "LastTradeorSettle",,"T") -> -0.14 | G50: =RTD("cqg.rtd",,"ContractData",A50,"NetLastTradeToday",,"T") -> -0.01 | H50: =RTD("cqg.rtd",,"ContractData",A50,"NetLastTradeToday",,"T") -> -0.01 | I50: =RTD("cqg.rtd", ,"ContractData",A50, "T_CVol") -> 1166
A51: =RTD("cqg.rtd",,"ContractData",'SO3'!AF41, "Symbol") -> SO3S2Z24 | B51: =RIGHT(RTD("cqg.rtd",,"ContractData",A51, "LongDescription"),15) -> Dec 24, Jun 25 | C51: =RTD("cqg.rtd", ,"ContractData",A51, "Open",,"T") -> -0.1 | D51: =RTD("cqg.rtd", ,"ContractData",A51, "High",,"T") -> -0.1 | E51: =RTD("cqg.rtd", ,"ContractData",A51, "Low",,"T") -> -0.12 | F51: =RTD("cqg.rtd", ,"ContractData",A51, "LastTradeorSettle",,"T") -> -0.11 | G51: =RTD("cqg.rtd",,"ContractData",A51,"NetLastTradeToday",,"T") -> -0.005 | H51: =RTD("cqg.rtd",,"ContractData",A51,"NetLastTradeToday",,"T") -> -0.005 | I51: =RTD("cqg.rtd", ,"ContractData",A51, "T_CVol") -> 507
A52: =RTD("cqg.rtd",,"ContractData",'SO3'!AF42, "Symbol") -> SO3S2H25 | B52: =RIGHT(RTD("cqg.rtd",,"ContractData",A52, "LongDescription"),15) -> Mar 25, Sep 25 | C52: =RTD("cqg.rtd", ,"ContractData",A52, "Open",,"T") -> -0.11 | D52: =RTD("cqg.rtd", ,"ContractData",A52, "High",,"T") -> -0.11 | E52: =RTD("cqg.rtd", ,"ContractData",A52, "Low",,"T") -> -0.125 | F52: =RTD("cqg.rtd", ,"ContractData",A52, "LastTradeorSettle",,"T") -> -0.11 | G52: =RTD("cqg.rtd",,"ContractData",A52,"NetLastTradeToday",,"T") -> -0.005 | H52: =RTD("cqg.rtd",,"ContractData",A52,"NetLastTradeToday",,"T") -> -0.005 | I52: =RTD("cqg.rtd", ,"ContractData",A52, "T_CVol") -> 647
A53: =RTD("cqg.rtd",,"ContractData",'SO3'!AF43, "Symbol") -> SO3S2M25 | B53: =RIGHT(RTD("cqg.rtd",,"ContractData",A53, "LongDescription"),15) -> Jun 25, Dec 25 | C53: =RTD("cqg.rtd", ,"ContractData",A53, "Open",,"T") -> -0.12 | D53: =RTD("cqg.rtd", ,"ContractData",A53, "High",,"T") -> -0.115 | E53: =RTD("cqg.rtd", ,"ContractData",A53, "Low",,"T") -> -0.13 | F53: =RTD("cqg.rtd", ,"ContractData",A53, "LastTradeorSettle",,"T") -> -0.115 | G53: =RTD("cqg.rtd",,"ContractData",A53,"NetLastTradeToday",,"T") -> 0 | H53: =RTD("cqg.rtd",,"ContractData",A53,"NetLastTradeToday",,"T") -> 0 | I53: =RTD("cqg.rtd", ,"ContractData",A53, "T_CVol") -> 503
A54: =RTD("cqg.rtd",,"ContractData",'SO3'!AF44, "Symbol") -> SO3S2U25 | B54: =RIGHT(RTD("cqg.rtd",,"ContractData",A54, "LongDescription"),15) -> Sep 25, Mar 26 | C54: =RTD("cqg.rtd", ,"ContractData",A54, "Open",,"T") -> -0.115 | D54: =RTD("cqg.rtd", ,"ContractData",A54, "High",,"T") -> -0.105 | E54: =RTD("cqg.rtd", ,"ContractData",A54, "Low",,"T") -> -0.12 | F54: =RTD("cqg.rtd", ,"ContractData",A54, "LastTradeorSettle",,"T") -> -0.105 | G54: =RTD("cqg.rtd",,"ContractData",A54,"NetLastTradeToday",,"T") -> 0.005 | H54: =RTD("cqg.rtd",,"ContractData",A54,"NetLastTradeToday",,"T") -> 0.005 | I54: =RTD("cqg.rtd", ,"ContractData",A54, "T_CVol") -> 631
A55: =RTD("cqg.rtd",,"ContractData",'SO3'!AF45, "Symbol") -> SO3S2Z25 | B55: =RIGHT(RTD("cqg.rtd",,"ContractData",A55, "LongDescription"),15) -> Dec 25, Jun 26 | C55: =RTD("cqg.rtd", ,"ContractData",A55, "Open",,"T") -> -0.095 | D55: =RTD("cqg.rtd", ,"ContractData",A55, "High",,"T") -> -0.085 | E55: =RTD("cqg.rtd", ,"ContractData",A55, "Low",,"T") -> -0.095 | F55: =RTD("cqg.rtd", ,"ContractData",A55, "LastTradeorSettle",,"T") -> -0.085 | G55: =RTD("cqg.rtd",,"ContractData",A55,"NetLastTradeToday",,"T") -> 0.01 | H55: =RTD("cqg.rtd",,"ContractData",A55,"NetLastTradeToday",,"T") -> 0.01 | I55: =RTD("cqg.rtd", ,"ContractData",A55, "T_CVol") -> 357
A56: =RTD("cqg.rtd",,"ContractData",'SO3'!AF46, "Symbol") -> SO3S2H26 | B56: =RIGHT(RTD("cqg.rtd",,"ContractData",A56, "LongDescription"),15) -> Mar 26, Sep 26 | C56: =RTD("cqg.rtd", ,"ContractData",A56, "Open",,"T") -> -0.085 | D56: =RTD("cqg.rtd", ,"ContractData",A56, "High",,"T") -> -0.08 | E56: =RTD("cqg.rtd", ,"ContractData",A56, "Low",,"T") -> -0.085 | F56: =RTD("cqg.rtd", ,"ContractData",A56, "LastTradeorSettle",,"T") -> -0.08 | G56: =RTD("cqg.rtd",,"ContractData",A56,"NetLastTradeToday",,"T") -> 0.005 | H56: =RTD("cqg.rtd",,"ContractData",A56,"NetLastTradeToday",,"T") -> 0.005 | I56: =RTD("cqg.rtd", ,"ContractData",A56, "T_CVol") -> 253
B57: CQG, Inc. Copyright © 2023 | E57: Designed by Thom Hartle

Sheet SO3 (hidden)
C1: S | D1: 1 | N1: =UPPER(SONIA_3_Mo_Master!E11) -> SO3M23 | Q1: SO3 | R1: LastTradeorSettle | S1: Bid | T1: Ask | U1: NetLastQuoteToday
A2: =Q2 -> SO3M23 | B2: =RTD("cqg.rtd", ,"ContractData",A2, "ContractMonth") -> JUN | C2: =IF(B2="Jan","F",IF(B2="Feb","G",IF(B2="Mar","H",IF(B2="Apr","J",IF(B2="May","K",IF(B2="JUN","M",IF(B2="Jul","N",IF(B2="Aug","Q",IF(B2="Sep","U",IF(B2="Oct","V",IF(B2="Nov","X",IF(B2="Dec","Z")))))))))))) -> M | D2: =$Q$1&$C$1&$D$1&$C2 -> SO3S1M | N2: =VLOOKUP(N1,Q35:R38,2,FALSE) -> 2 | P2: =LEFT(RIGHT(Q2,2),1) -> 2 | Q2: =N1 -> SO3M23 | R2: =RTD("cqg.rtd", ,"ContractData", Q2, $R$1,,"T") -> 95.46 | S2: =RTD("cqg.rtd", ,"ContractData", Q2,$S$1,,"T") -> 95.455 | T2: =RTD("cqg.rtd", ,"ContractData", Q2,$T$1,,"T") -> 95.465 | U2: =RTD("cqg.rtd", ,"ContractData", "F."&$Q$1&"?1", $U$1,,"T") -> 0.005
A3: =Q3 -> SO3U23 | B3: =RTD("cqg.rtd", ,"ContractData",A3, "ContractMonth") -> SEP | C3: =IF(B3="Jan","F",IF(B3="Feb","G",IF(B3="Mar","H",IF(B3="Apr","J",IF(B3="May","K",IF(B3="JUN","M",IF(B3="Jul","N",IF(B3="Aug","Q",IF(B3="Sep","U",IF(B3="Oct","V",IF(B3="Nov","X",IF(B3="Dec","Z")))))))))))) -> U | D3: =$Q$1&$C$1&$D$1&$C3 -> SO3S1U | N3: =N2+1 -> 3 | P3: =LEFT(RIGHT(Q3,2),1) -> 2 | Q3: =RTD("cqg.rtd", ,"ContractData", $Q$1&"?"&N3, "Symbol") -> SO3U23 | R3: =RTD("cqg.rtd", ,"ContractData", Q3, $R$1,,"T") -> 95.435 | S3: =RTD("cqg.rtd", ,"ContractData", Q3,$S$1,,"T") -> 95.43 | T3: =RTD("cqg.rtd", ,"ContractData", Q3,$T$1,,"T") -> 95.44 | U3: =RTD("cqg.rtd", ,"ContractData", "F."&$Q$1&"?2", $U$1,,"T") -> 0.015
A4: SO3Z23 | B4: =RTD("cqg.rtd", ,"ContractData",A4, "ContractMonth") -> DEC | C4: Z | D4: SO3S1Z | N4: =N3+1 -> 4 | P4: 2 | Q4: =RTD("cqg.rtd", ,"ContractData", $Q$1&"?"&N4, "Symbol") -> SO3Z23 | R4: =RTD("cqg.rtd", ,"ContractData", Q4, $R$1,,"T") -> 95.57 | S4: =RTD("cqg.rtd", ,"ContractData", Q4,$S$1,,"T") -> 95.56 | T4: =RTD("cqg.rtd", ,"ContractData", Q4,$T$1,,"T") -> 95.57 | U4: =RTD("cqg.rtd", ,"ContractData", "F."&$Q$1&"?3", $U$1,,"T") -> 0.02
A5: SO3H24 | B5: =RTD("cqg.rtd", ,"ContractData",A5, "ContractMonth") -> MAR | C5: H | D5: SO3S1H | N5: 5 | P5: 2 | Q5: =RTD("cqg.rtd", ,"ContractData", $Q$1&"?"&N5, "Symbol") -> SO3H24 | R5: =RTD("cqg.rtd", ,"ContractData", Q5, $R$1,,"T") -> 95.795 | S5: =RTD("cqg.rtd", ,"ContractData", Q5,$S$1,,"T") -> 95.79 | T5: =RTD("cqg.rtd", ,"ContractData", Q5,$T$1,,"T") -> 95.795 | U5: =RTD("cqg.rtd", ,"ContractData", "F."&$Q$1&"?4", $U$1,,"T") -> 0.025
A6: SO3M24 | B6: =RTD("cqg.rtd", ,"ContractData",A6, "ContractMonth") -> JUN | C6: M | D6: SO3S1M | N6: 6 | P6: 2 | Q6: =RTD("cqg.rtd", ,"ContractData", $Q$1&"?"&N6, "Symbol") -> SO3M24 | R6: =RTD("cqg.rtd", ,"ContractData", Q6, $R$1,,"T") -> 96.025 | S6: =RTD("cqg.rtd", ,"ContractData", Q6,$S$1,,"T") -> 96.015 | T6: =RTD("cqg.rtd", ,"ContractData", Q6,$T$1,,"T") -> 96.025 | U6: =RTD("cqg.rtd", ,"ContractData", "F."&$Q$1&"?5", $U$1,,"T") -> 0.03
A7: SO3U24 | B7: =RTD("cqg.rtd", ,"ContractData",A7, "ContractMonth") -> SEP | C7: U | D7: SO3S1U | N7: 7 | P7: 2 | Q7: =RTD("cqg.rtd", ,"ContractData", $Q$1&"?"&N7, "Symbol") -> SO3U24 | R7: =RTD("cqg.rtd", ,"ContractData", Q7, $R$1,,"T") -> 96.185 | S7: =RTD("cqg.rtd", ,"ContractData", Q7,$S$1,,"T") -> 96.175 | T7: =RTD("cqg.rtd", ,"ContractData", Q7,$T$1,,"T") -> 96.185 | U7: =RTD("cqg.rtd", ,"ContractData", "F."&$Q$1&"?6", $U$1,,"T") -> 0.03
A8: SO3Z24 | B8: =RTD("cqg.rtd", ,"ContractData",A8, "ContractMonth") -> DEC | C8: Z | D8: SO3S1Z | N8: 8 | P8: 2 | Q8: =RTD("cqg.rtd", ,"ContractData", $Q$1&"?"&N8, "Symbol") -> SO3Z24 | R8: =RTD("cqg.rtd", ,"ContractData", Q8, $R$1,,"T") -> 96.265 | S8: =RTD("cqg.rtd", ,"ContractData", Q8,$S$1,,"T") -> 96.26 | T8: =RTD("cqg.rtd", ,"ContractData", Q8,$T$1,,"T") -> 96.27 | U8: =RTD("cqg.rtd", ,"ContractData", "F."&$Q$1&"?7", $U$1,,"T") -> 0.03
A9: SO3H25 | B9: =RTD("cqg.rtd", ,"ContractData",A9, "ContractMonth") -> MAR | C9: H | D9: SO3S1H | N9: 9 | P9: 2 | Q9: =RTD("cqg.rtd", ,"ContractData", $Q$1&"?"&N9, "Symbol") -> SO3H25 | R9: =RTD("cqg.rtd", ,"ContractData", Q9, $R$1,,"T") -> 96.32 | S9: =RTD("cqg.rtd", ,"ContractData", Q9,$S$1,,"T") -> 96.315 | T9: =RTD("cqg.rtd", ,"ContractData", Q9,$T$1,,"T") -> 96.325 | U9: =RTD("cqg.rtd", ,"ContractData", "F."&$Q$1&"?8", $U$1,,"T") -> 0.04
A10: SO3M25 | B10: =RTD("cqg.rtd", ,"ContractData",A10, "ContractMonth") -> JUN | C10: M | D10: SO3S1M | N10: 10 | P10: 2 | Q10: =RTD("cqg.rtd", ,"ContractData", $Q$1&"?"&N10, "Symbol") -> SO3M25 | R10: =RTD("cqg.rtd", ,"ContractData", Q10, $R$1,,"T") -> 96.375 | S10: =RTD("cqg.rtd", ,"ContractData", Q10,$S$1,,"T") -> 96.365 | T10: =RTD("cqg.rtd", ,"ContractData", Q10,$T$1,,"T") -> 96.375 | U10: =RTD("cqg.rtd", ,"ContractData", "F."&$Q$1&"?9", $U$1,,"T") -> 0.04
A11: SO3U25 | B11: =RTD("cqg.rtd", ,"ContractData",A11, "ContractMonth") -> SEP | C11: U | D11: SO3S1U | N11: 11 | P11: 2 | Q11: =RTD("cqg.rtd", ,"ContractData", $Q$1&"?"&N11, "Symbol") -> SO3U25 | R11: =RTD("cqg.rtd", ,"ContractData", Q11, $R$1,,"T") -> 96.43 | S11: =RTD("cqg.rtd", ,"ContractData", Q11,$S$1,,"T") -> 96.425 | T11: =RTD("cqg.rtd", ,"ContractData", Q11,$T$1,,"T") -> 96.43 | U11: =RTD("cqg.rtd", ,"ContractData", "F."&$Q$1&"?10", $U$1,,"T") -> 0.035
A12: SO3Z25 | B12: =RTD("cqg.rtd", ,"ContractData",A12, "ContractMonth") -> DEC | C12: Z | D12: SO3S1Z | N12: 12 | P12: 2 | Q12: =RTD("cqg.rtd", ,"ContractData", $Q$1&"?"&N12, "Symbol") -> SO3Z25 | R12: =RTD("cqg.rtd", ,"ContractData", Q12, $R$1,,"T") -> 96.485 | S12: =RTD("cqg.rtd", ,"ContractData", Q12,$S$1,,"T") -> 96.48 | T12: =RTD("cqg.rtd", ,"ContractData", Q12,$T$1,,"T") -> 96.49 | U12: =RTD("cqg.rtd", ,"ContractData", "F."&$Q$1&"?11",$U$1,,"T") -> 0.035
A13: SO3H26 | B13: =RTD("cqg.rtd", ,"ContractData",A13, "ContractMonth") -> MAR | C13: H | D13: SO3S1H | N13: 13 | P13: 2 | Q13: =RTD("cqg.rtd", ,"ContractData", $Q$1&"?"&N13, "Symbol") -> SO3H26 | R13: =RTD("cqg.rtd", ,"ContractData", Q13, $R$1,,"T") -> 96.525 | S13: =RTD("cqg.rtd", ,"ContractData", Q13,$S$1,,"T") -> 96.53 | T13: =RTD("cqg.rtd", ,"ContractData", Q13,$T$1,,"T") -> 96.535 | U13: =RTD("cqg.rtd", ,"ContractData", "F."&$Q$1&"?12",$U$1,,"T") -> 0.035
N14: 14 | P14: 2 | Q14: =RTD("cqg.rtd", ,"ContractData", $Q$1&"?"&N14, "Symbol") -> SO3M26 | R14: =RTD("cqg.rtd", ,"ContractData", Q14, $R$1,,"T") -> 96.57 | S14: =RTD("cqg.rtd", ,"ContractData", Q14,$S$1,,"T") -> 96.565 | T14: =RTD("cqg.rtd", ,"ContractData", Q14,$T$1,,"T") -> 96.575 | U14: =RTD("cqg.rtd", ,"ContractData", "F."&$Q$1&"?12",$U$1,,"T") -> 0.035
N15: 15 | P15: 2 | Q15: =RTD("cqg.rtd", ,"ContractData", $Q$1&"?"&N15, "Symbol") -> SO3U26 | R15: =RTD("cqg.rtd", ,"ContractData", Q15, $R$1,,"T") -> 96.615 | S15: =RTD("cqg.rtd", ,"ContractData", Q15,$S$1,,"T") -> 96.605 | T15: =RTD("cqg.rtd", ,"ContractData", Q15,$T$1,,"T") -> 96.615 | U15: =RTD("cqg.rtd", ,"ContractData", "F."&$Q$1&"?12",$U$1,,"T") -> 0.035
N16: 16 | P16: 2 | Q16: =RTD("cqg.rtd", ,"ContractData", $Q$1&"?"&N16, "Symbol") -> SO3Z26 | R16: =RTD("cqg.rtd", ,"ContractData", Q16, $R$1,,"T") -> 96.65 | S16: =RTD("cqg.rtd", ,"ContractData", Q16,$S$1,,"T") -> 96.655 | T16: =RTD("cqg.rtd", ,"ContractData", Q16,$T$1,,"T") -> 96.665 | U16: =RTD("cqg.rtd", ,"ContractData", "F."&$Q$1&"?12",$U$1,,"T") -> 0.035
C17: Max | D17: Min | N17: 17 | P17: 2 | Q17: =RTD("cqg.rtd", ,"ContractData", $Q$1&"?"&N17, "Symbol") -> SO3H27 | R17: =RTD("cqg.rtd", ,"ContractData", Q17, $R$1,,"T") -> 96.715 | S17: =RTD("cqg.rtd", ,"ContractData", Q17,$S$1,,"T") -> 96.71 | T17: =RTD("cqg.rtd", ,"ContractData", Q17,$T$1,,"T") -> 96.715 | U17: =RTD("cqg.rtd", ,"ContractData", "F."&$Q$1&"?12",$U$1,,"T") -> 0.035
C18: =ROUNDUP(MAX(C19:C20),0) -> 97 | D18: =ROUNDDOWN(MIN(D19:D20),0) -> 95 | N18: 18 | P18: 2 | Q18: =RTD("cqg.rtd", ,"ContractData", $Q$1&"?"&N18, "Symbol") -> SO3M27 | R18: =IF(RTD("cqg.rtd", ,"ContractData", Q18, $R$1,,"T")="",NA(),RTD("cqg.rtd", ,"ContractData", Q18, $R$1,,"T")) -> 96.755 | S18: =RTD("cqg.rtd", ,"ContractData", Q18,$S$1,,"T") -> 96.75 | T18: =RTD("cqg.rtd", ,"ContractData", Q18,$T$1,,"T") -> 96.76 | U18: =RTD("cqg.rtd", ,"ContractData", "F."&$Q$1&"?12",$U$1,,"T") -> 0.035
C19: =_xlfn.AGGREGATE(4,6,R2:R21) -> 96.765 | D19: =_xlfn.AGGREGATE(5,6,R2:R21) -> 95.435 | N19: 19 | P19: 2 | Q19: =RTD("cqg.rtd", ,"ContractData", $Q$1&"?"&N19, "Symbol") -> SO3U27 | R19: =IF(RTD("cqg.rtd", ,"ContractData", Q19, $R$1,,"T")="",NA(),RTD("cqg.rtd", ,"ContractData", Q19, $R$1,,"T")) -> 96.74 | S19: =RTD("cqg.rtd", ,"ContractData", Q19,$S$1,,"T") -> 96.78 | T19: =RTD("cqg.rtd", ,"ContractData", Q19,$T$1,,"T") -> 96.795 | U19: =RTD("cqg.rtd", ,"ContractData", "F."&$Q$1&"?12",$U$1,,"T") -> 0.035
C20: =_xlfn.AGGREGATE(4,6,B26:D45) -> 96.835 | D20: =_xlfn.AGGREGATE(5,6,B26:D45) -> 95.215 | N20: 20 | P20: 2 | Q20: =RTD("cqg.rtd", ,"ContractData", $Q$1&"?"&N20, "Symbol") -> SO3Z27 | R20: =IF(RTD("cqg.rtd", ,"ContractData", Q20, $R$1,,"T")="",NA(),RTD("cqg.rtd", ,"ContractData", Q20, $R$1,,"T")) -> 96.755 | S20: =RTD("cqg.rtd", ,"ContractData", Q20,$S$1,,"T") -> 96.795 | T20: =RTD("cqg.rtd", ,"ContractData", Q20,$T$1,,"T") -> 96.815 | U20: =RTD("cqg.rtd", ,"ContractData", "F."&$Q$1&"?12",$U$1,,"T") -> 0.035
N21: 21 | P21: 2 | Q21: =RTD("cqg.rtd", ,"ContractData", $Q$1&"?"&N21, "Symbol") -> SO3H28 | R21: =IF(RTD("cqg.rtd", ,"ContractData", Q21, $R$1,,"T")="",NA(),RTD("cqg.rtd", ,"ContractData", Q21, $R$1,,"T")) -> 96.765 | S21: =RTD("cqg.rtd", ,"ContractData", Q21,$S$1,,"T") -> 96.8 | T21: =RTD("cqg.rtd", ,"ContractData", Q21,$T$1,,"T") -> 96.835 | U21: =RTD("cqg.rtd", ,"ContractData", "F."&$Q$1&"?12",$U$1,,"T") -> 0.035
N22: 22 | P22: 2 | Q22: =RTD("cqg.rtd", ,"ContractData", $Q$1&"?"&N22, "Symbol") -> SO3M28 | R22: =IF(RTD("cqg.rtd", ,"ContractData", Q22, $R$1,,"T")="",NA(),RTD("cqg.rtd", ,"ContractData", Q22, $R$1,,"T")) ->  | S22: =RTD("cqg.rtd", ,"ContractData", Q22,$S$1,,"T") -> 96.795 | T22: =RTD("cqg.rtd", ,"ContractData", Q22,$T$1,,"T") -> 96.855 | U22: =RTD("cqg.rtd", ,"ContractData", "F."&$Q$1&"?12",$U$1,,"T") -> 0.035
N23: 23 | P23: 2 | Q23: =RTD("cqg.rtd", ,"ContractData", $Q$1&"?"&N23, "Symbol") -> SO3U28 | R23: =IF(RTD("cqg.rtd", ,"ContractData", Q23, $R$1,,"T")="",NA(),RTD("cqg.rtd", ,"ContractData", Q23, $R$1,,"T")) ->  | S23: =RTD("cqg.rtd", ,"ContractData", Q23,$S$1,,"T") -> 96.795 | T23: =RTD("cqg.rtd", ,"ContractData", Q23,$T$1,,"T") -> 96.87 | U23: =RTD("cqg.rtd", ,"ContractData", "F."&$Q$1&"?12",$U$1,,"T") -> 0.035 | Y23: Max | AH23: Max
Y24: =ROUNDUP(MAX(Y25:Y26),1) -> 0.2 | Z24: =ROUNDUP(MAX(Z25:Z26),1)*-1 -> -0.3 | AH24: =ROUNDUP(MAX(AH25:AH26),1) -> 0.2 | AI24: =ROUNDUP(MAX(AI25:AI26),1)*-1 -> -0.5
B25: Yesterday | C25: 5-days | D25: 20-days | E25: Yesterday | F25: 5-days | G25: 20-days | Y25: =_xlfn.AGGREGATE(4,6,V35:V54) -> 0.025 | Z25: =ABS(_xlfn.AGGREGATE(5,6,V35:V54)) -> 0.23 | AH25: =_xlfn.AGGREGATE(4,6,AG35:AG54) -> -0.055 | AI25: =ABS(_xlfn.AGGREGATE(5,6,AG35:AG54)) -> 0.455
B26: =RTD("cqg.rtd",,"StudyData",Q2, "Bar",, "Close","D","-1","All",,,,"T") -> 95.45 | C26: =RTD("cqg.rtd",,"StudyData",Q2, "Bar",, "Close","D","-5","All",,,,"T") -> 95.505 | D26: =RTD("cqg.rtd",,"StudyData",Q2, "Bar",, "Close","D","-20","All",,,,"T") -> 95.37 | E26: =R2-B26 -> 0.01 | F26: =R2-C26 -> -0.045 | G26: =R2-D26 -> 0.09 | U26: 1-Qtr | Y26: =_xlfn.AGGREGATE(4,6,X35:Z54) -> 0.155 | Z26: =ABS(_xlfn.AGGREGATE(5,6,X35:Z54)) -> 0.235 | AF26: 1-Qtr | AH26: =_xlfn.AGGREGATE(4,6,AI35:AK54) -> 0.14 | AI26: =ABS(_xlfn.AGGREGATE(5,6,AI35:AK54)) -> 0.45
B27: =RTD("cqg.rtd",,"StudyData",Q3, "Bar",, "Close","D","-1","All",,,,"T") -> 95.42 | C27: =RTD("cqg.rtd",,"StudyData",Q3, "Bar",, "Close","D","-5","All",,,,"T") -> 95.525 | D27: =RTD("cqg.rtd",,"StudyData",Q3, "Bar",, "Close","D","-20","All",,,,"T") -> 95.215 | E27: =R3-B27 -> 0.015 | F27: =R3-C27 -> -0.09 | G27: =R3-D27 -> 0.22 | U27: 2-Qtr | AF27: 2-Qtr
B28: =RTD("cqg.rtd",,"StudyData",Q4, "Bar",, "Close","D","-1","All",,,,"T") -> 95.545 | C28: =RTD("cqg.rtd",,"StudyData",Q4, "Bar",, "Close","D","-5","All",,,,"T") -> 95.695 | D28: =RTD("cqg.rtd",,"StudyData",Q4, "Bar",, "Close","D","-20","All",,,,"T") -> 95.23 | E28: 0.025 | F28: -0.125 | G28: 0.34 | U28: 3-Qtr | AF28: 3-Qtr
B29: =RTD("cqg.rtd",,"StudyData",Q5, "Bar",, "Close","D","-1","All",,,,"T") -> 95.765 | C29: =RTD("cqg.rtd",,"StudyData",Q5, "Bar",, "Close","D","-5","All",,,,"T") -> 95.93 | D29: =RTD("cqg.rtd",,"StudyData",Q5, "Bar",, "Close","D","-20","All",,,,"T") -> 95.37 | E29: 0.03 | F29: -0.135 | G29: 0.425 | U29: 4-Qtr | AF29: 4-Qtr
B30: =RTD("cqg.rtd",,"StudyData",Q6, "Bar",, "Close","D","-1","All",,,,"T") -> 95.995 | C30: =RTD("cqg.rtd",,"StudyData",Q6, "Bar",, "Close","D","-5","All",,,,"T") -> 96.145 | D30: =RTD("cqg.rtd",,"StudyData",Q6, "Bar",, "Close","D","-20","All",,,,"T") -> 95.55 | E30: 0.03 | F30: -0.12 | G30: 0.475 | U30: 5-Qtr | AF30: 5-Qtr | AH30: =RTD("cqg.rtd",,"ContractData",AF35,"LongDescription",, "T") -> Three Month SONIA Cal Spr, Jun 23, Dec 23
B31: =RTD("cqg.rtd",,"StudyData",Q7, "Bar",, "Close","D","-1","All",,,,"T") -> 96.155 | C31: =RTD("cqg.rtd",,"StudyData",Q7, "Bar",, "Close","D","-5","All",,,,"T") -> 96.3 | D31: =RTD("cqg.rtd",,"StudyData",Q7, "Bar",, "Close","D","-20","All",,,,"T") -> 95.7 | E31: 0.03 | F31: -0.115 | G31: 0.485 | U31: 6-Qtr | W31: =RTD("cqg.rtd",,"ContractData",U35,"LongDescription",, "T") -> Three Month SONIA Cal Spr, Jun 23, Sep 23 | AF31: 6-Qtr | AH31: =RTD("cqg.rtd",,"ContractData",AF36,"LongDescription",, "T") -> Three Month SONIA Cal Spr, Sep 23, Mar 24
B32: =RTD("cqg.rtd",,"StudyData",Q8, "Bar",, "Close","D","-1","All",,,,"T") -> 96.23 | C32: =RTD("cqg.rtd",,"StudyData",Q8, "Bar",, "Close","D","-5","All",,,,"T") -> 96.375 | D32: =RTD("cqg.rtd",,"StudyData",Q8, "Bar",, "Close","D","-20","All",,,,"T") -> 95.815 | E32: 0.035 | F32: -0.11 | G32: 0.45 | U32: =SONIA_3_Mo_Master!D25 -> 1-Qtr | W32: =RTD("cqg.rtd",,"ContractData",U54,"LongDescription",, "T") -> Three Month SONIA Cal Spr, Mar 28, Jun 28 | X32: =IF(LEFT(RTD("cqg.rtd",,"StudyData",U35, "Bar",, "Close","D","-1","All",,,,"T"),3)="768",NA(),IF(RTD("cqg.rtd",,"StudyData",U35, "Bar",, "Close","D","-1","All",,,,"T")="",NA(),RTD("cqg.rtd",,"StudyData",U35, "Bar",, "Close","D","-1","All",,,,"T"))) -> 0.025 | AF32: =SONIA_3_Mo_Master!D41 -> 2-Qtr | AH32: =AG35 -> -0.105
B33: =RTD("cqg.rtd",,"StudyData",Q9, "Bar",, "Close","D","-1","All",,,,"T") -> 96.285 | C33: =RTD("cqg.rtd",,"StudyData",Q9, "Bar",, "Close","D","-5","All",,,,"T") -> 96.42 | D33: =RTD("cqg.rtd",,"StudyData",Q9, "Bar",, "Close","D","-20","All",,,,"T") -> 95.91 | E33: 0.035 | F33: -0.1 | G33: 0.41 | U33: =LEFT(U32,1) -> 1 | AF33: =LEFT(AF32,1) -> 2
B34: =RTD("cqg.rtd",,"StudyData",Q10, "Bar",, "Close","D","-1","All",,,,"T") -> 96.34 | C34: =RTD("cqg.rtd",,"StudyData",Q10, "Bar",, "Close","D","-5","All",,,,"T") -> 96.46 | D34: =RTD("cqg.rtd",,"StudyData",Q10, "Bar",, "Close","D","-20","All",,,,"T") -> 95.995 | E34: 0.035 | F34: -0.085 | G34: 0.38 | R34: Symbol Check | X34: Yesterday | Y34: 5-days | Z34: 20-days | AA34: Yesterday | AB34: 5-days | AC34: 20-days | AI34: Yesterday | AJ34: 5-days | AK34: 20-days | AL34: Yesterday | AM34: 5-days | AN34: 20-days
B35: =RTD("cqg.rtd",,"StudyData",Q11, "Bar",, "Close","D","-1","All",,,,"T") -> 96.395 | C35: =RTD("cqg.rtd",,"StudyData",Q11, "Bar",, "Close","D","-5","All",,,,"T") -> 96.51 | D35: =RTD("cqg.rtd",,"StudyData",Q11, "Bar",, "Close","D","-20","All",,,,"T") -> 96.065 | E35: 0.035 | F35: -0.08 | G35: 0.365 | Q35: =RTD("cqg.rtd",,"ContractData",Q1&"?1", "Symbol") -> SO3H23 | R35: 1 | S35: =RTD("cqg.rtd",,"ContractData",Q1&"?1", "Symbol") -> SO3H23 | T35: =N2 -> 2 | U35: ="SO3S"&$U$33&"?"&""&T35 -> SO3S1?2 | V35: =IF(LEFT(RTD("cqg.rtd", ,"ContractData", U35,"LastTradeorSettle",,"T"),3)="768",NA(),IF(RTD("cqg.rtd", ,"ContractData", U35,"LastTradeorSettle",,"T")="",NA(),RTD("cqg.rtd", ,"ContractData", U35,"LastTradeorSettle",,"T"))) -> 0.025 | X35: =IF(LEFT(RTD("cqg.rtd",,"StudyData",U35, "Bar",, "Close","D","-1","All",,,,"T"),3)="777",NA(),IF(RTD("cqg.rtd",,"StudyData",U35, "Bar",, "Close","D","-1","All",,,,"T")="",NA(),RTD("cqg.rtd",,"StudyData",U35, "Bar",, "Close","D","-1","All",,,,"T"))) -> 0.025 | Y35: =IF(LEFT(RTD("cqg.rtd",,"StudyData",U35, "Bar",, "Close","D","-5","All",,,,"T"),3)="777",NA(),IF(RTD("cqg.rtd",,"StudyData",U35, "Bar",, "Close","D","-5","All",,,,"T")="",NA(),RTD("cqg.rtd",,"StudyData",U35, "Bar",, "Close","D","-5","All",,,,"T"))) -> -0.02 | Z35: =IF(LEFT(RTD("cqg.rtd",,"StudyData",U35, "Bar",, "Close","D","-20","All",,,,"T"),3)="777",NA(),IF(RTD("cqg.rtd",,"StudyData",U35, "Bar",, "Close","D","-20","All",,,,"T")="",NA(),RTD("cqg.rtd",,"StudyData",U35, "Bar",, "Close","D","-20","All",,,,"T"))) -> 0.155 | AA35: =IFERROR($V35-X35,NA()) -> 0 | AB35: =IFERROR($V35-Y35,NA()) -> 0.045 | AC35: =IFERROR($V35-Z35,NA()) -> -0.13 | AE35: =N2 -> 2 | AF35: ="SO3S"&$AF$33&"?"&""&AE35 -> SO3S2?2 | AG35: =IF(LEFT(RTD("cqg.rtd", ,"ContractData", AF35,"LastTradeorSettle",,"T"),3)="768",NA(),IF(RTD("cqg.rtd", ,"ContractData", AF35,"LastTradeorSettle",,"T")="",NA(),RTD("cqg.rtd", ,"ContractData", AF35,"LastTradeorSettle",,"T"))) -> -0.105 | AI35: =IF(LEFT(RTD("cqg.rtd",,"StudyData",AF35, "Bar",, "Close","D","-1","All",,,,"T"),3)="777",NA(),IF(RTD("cqg.rtd",,"StudyData",AF35, "Bar",, "Close","D","-1","All",,,,"T")="",NA(),RTD("cqg.rtd",,"StudyData",AF35, "Bar",, "Close","D","-1","All",,,,"T"))) -> -0.1 | AJ35: =IF(LEFT(RTD("cqg.rtd",,"StudyData",AF35, "Bar",, "Close","D","-5","All",,,,"T"),3)="777",NA(),IF(RTD("cqg.rtd",,"StudyData",AF35, "Bar",, "Close","D","-5","All",,,,"T")="",NA(),RTD("cqg.rtd",,"StudyData",AF35, "Bar",, "Close","D","-5","All",,,,"T"))) -> -0.19 | AK35: =IF(LEFT(RTD("cqg.rtd",,"StudyData",AF35, "Bar",, "Close","D","-20","All",,,,"T"),3)="777",NA(),IF(RTD("cqg.rtd",,"StudyData",AF35, "Bar",, "Close","D","-20","All",,,,"T")="",NA(),RTD("cqg.rtd",,"StudyData",AF35, "Bar",, "Close","D","-20","All",,,,"T"))) -> 0.14 | AL35: =$AG35-$AI35 -> -0.005 | AM35: =$AG35-$AJ35 -> 0.085 | AN35: =$AG35-$AK35 -> -0.245
B36: =RTD("cqg.rtd",,"StudyData",Q12, "Bar",, "Close","D","-1","All",,,,"T") -> 96.455 | C36: =RTD("cqg.rtd",,"StudyData",Q12, "Bar",, "Close","D","-5","All",,,,"T") -> 96.565 | D36: =RTD("cqg.rtd",,"StudyData",Q12, "Bar",, "Close","D","-20","All",,,,"T") -> 96.13 | E36: 0.03 | F36: -0.08 | G36: 0.355 | Q36: =RTD("cqg.rtd",,"ContractData",Q1&"?2", "Symbol") -> SO3M23 | R36: =R35+1 -> 2 | S36: =RTD("cqg.rtd",,"ContractData",Q1&"?2", "Symbol") -> SO3M23 | T36: =N3 -> 3 | U36: ="SO3S"&$U$33&"?"&""&T36 -> SO3S1?3 | V36: =IF(LEFT(RTD("cqg.rtd", ,"ContractData", U36,"LastTradeorSettle",,"T"),3)="768",NA(),IF(RTD("cqg.rtd", ,"ContractData", U36,"LastTradeorSettle",,"T")="",NA(),RTD("cqg.rtd", ,"ContractData", U36,"LastTradeorSettle",,"T"))) -> -0.13 | X36: =IF(LEFT(RTD("cqg.rtd",,"StudyData",U36, "Bar",, "Close","D","-1","All",,,,"T"),3)="777",NA(),IF(RTD("cqg.rtd",,"StudyData",U36, "Bar",, "Close","D","-1","All",,,,"T")="",NA(),RTD("cqg.rtd",,"StudyData",U36, "Bar",, "Close","D","-1","All",,,,"T"))) -> -0.13 | Y36: =IF(LEFT(RTD("cqg.rtd",,"StudyData",U36, "Bar",, "Close","D","-5","All",,,,"T"),3)="777",NA(),IF(RTD("cqg.rtd",,"StudyData",U36, "Bar",, "Close","D","-5","All",,,,"T")="",NA(),RTD("cqg.rtd",,"StudyData",U36, "Bar",, "Close","D","-5","All",,,,"T"))) -> -0.175 | Z36: =IF(LEFT(RTD("cqg.rtd",,"StudyData",U36, "Bar",, "Close","D","-20","All",,,,"T"),3)="777",NA(),IF(RTD("cqg.rtd",,"StudyData",U36, "Bar",, "Close","D","-20","All",,,,"T")="",NA(),RTD("cqg.rtd",,"StudyData",U36, "Bar",, "Close","D","-20","All",,,,"T"))) -> -0.015 | AA36: =IFERROR($V36-X36,NA()) -> 0 | AB36: =IFERROR($V36-Y36,NA()) -> 0.045 | AC36: =IFERROR($V36-Z36,NA()) -> -0.115 | AE36: =AE35+1 -> 3 | AF36: ="SO3S"&$AF$33&"?"&""&AE36 -> SO3S2?3 | AG36: =IF(LEFT(RTD("cqg.rtd", ,"ContractData", AF36,"LastTradeorSettle",,"T"),3)="768",NA(),IF(RTD("cqg.rtd", ,"ContractData", AF36,"LastTradeorSettle",,"T")="",NA(),RTD("cqg.rtd", ,"ContractData", AF36,"LastTradeorSettle",,"T"))) -> -0.36 | AI36: =IF(LEFT(RTD("cqg.rtd",,"StudyData",AF36, "Bar",, "Close","D","-1","All",,,,"T"),3)="777",NA(),IF(RTD("cqg.rtd",,"StudyData",AF36, "Bar",, "Close","D","-1","All",,,,"T")="",NA(),RTD("cqg.rtd",,"StudyData",AF36, "Bar",, "Close","D","-1","All",,,,"T"))) -> -0.35 | AJ36: =IF(LEFT(RTD("cqg.rtd",,"StudyData",AF36, "Bar",, "Close","D","-5","All",,,,"T"),3)="777",NA(),IF(RTD("cqg.rtd",,"StudyData",AF36, "Bar",, "Close","D","-5","All",,,,"T")="",NA(),RTD("cqg.rtd",,"StudyData",AF36, "Bar",, "Close","D","-5","All",,,,"T"))) -> -0.405 | AK36: =IF(LEFT(RTD("cqg.rtd",,"StudyData",AF36, "Bar",, "Close","D","-20","All",,,,"T"),3)="777",NA(),IF(RTD("cqg.rtd",,"StudyData",AF36, "Bar",, "Close","D","-20","All",,,,"T")="",NA(),RTD("cqg.rtd",,"StudyData",AF36, "Bar",, "Close","D","-20","All",,,,"T"))) -> -0.15 | AL36: =$AG36-$AI36 -> -0.01 | AM36: =$AG36-$AJ36 -> 0.045 | AN36: =$AG36-$AK36 -> -0.21
B37: =RTD("cqg.rtd",,"StudyData",Q13, "Bar",, "Close","D","-1","All",,,,"T") -> 96.505 | C37: =RTD("cqg.rtd",,"StudyData",Q13, "Bar",, "Close","D","-5","All",,,,"T") -> 96.605 | D37: =RTD("cqg.rtd",,"StudyData",Q13, "Bar",, "Close","D","-20","All",,,,"T") -> 96.18 | E37: 0.02 | F37: -0.08 | G37: 0.345 | Q37: =RTD("cqg.rtd",,"ContractData",Q1&"?3", "Symbol") -> SO3U23 | R37: =R36+1 -> 3 | S37: =RTD("cqg.rtd",,"ContractData",Q1&"?3", "Symbol") -> SO3U23 | T37: 4 | U37: SO3S1?4 | V37: =IF(LEFT(RTD("cqg.rtd", ,"ContractData", U37,"LastTradeorSettle",,"T"),3)="768",NA(),IF(RTD("cqg.rtd", ,"ContractData", U37,"LastTradeorSettle",,"T")="",NA(),RTD("cqg.rtd", ,"ContractData", U37,"LastTradeorSettle",,"T"))) -> -0.23 | X37: =IF(LEFT(RTD("cqg.rtd",,"StudyData",U37, "Bar",, "Close","D","-1","All",,,,"T"),3)="777",NA(),IF(RTD("cqg.rtd",,"StudyData",U37, "Bar",, "Close","D","-1","All",,,,"T")="",NA(),RTD("cqg.rtd",,"StudyData",U37, "Bar",, "Close","D","-1","All",,,,"T"))) -> -0.225 | Y37: =IF(LEFT(RTD("cqg.rtd",,"StudyData",U37, "Bar",, "Close","D","-5","All",,,,"T"),3)="777",NA(),IF(RTD("cqg.rtd",,"StudyData",U37, "Bar",, "Close","D","-5","All",,,,"T")="",NA(),RTD("cqg.rtd",,"StudyData",U37, "Bar",, "Close","D","-5","All",,,,"T"))) -> -0.235 | Z37: =IF(LEFT(RTD("cqg.rtd",,"StudyData",U37, "Bar",, "Close","D","-20","All",,,,"T"),3)="777",NA(),IF(RTD("cqg.rtd",,"StudyData",U37, "Bar",, "Close","D","-20","All",,,,"T")="",NA(),RTD("cqg.rtd",,"StudyData",U37, "Bar",, "Close","D","-20","All",,,,"T"))) -> -0.14 | AA37: -0.005 | AB37: 0.005 | AC37: -0.09 | AE37: =AE36+1 -> 4 | AF37: SO3S2?4 | AG37: =IF(LEFT(RTD("cqg.rtd", ,"ContractData", AF37,"LastTradeorSettle",,"T"),3)="768",NA(),IF(RTD("cqg.rtd", ,"ContractData", AF37,"LastTradeorSettle",,"T")="",NA(),RTD("cqg.rtd", ,"ContractData", AF37,"LastTradeorSettle",,"T"))) -> -0.455 | AI37: =IF(LEFT(RTD("cqg.rtd",,"StudyData",AF37, "Bar",, "Close","D","-1","All",,,,"T"),3)="777",NA(),IF(RTD("cqg.rtd",,"StudyData",AF37, "Bar",, "Close","D","-1","All",,,,"T")="",NA(),RTD("cqg.rtd",,"StudyData",AF37, "Bar",, "Close","D","-1","All",,,,"T"))) -> -0.45 | AJ37: =IF(LEFT(RTD("cqg.rtd",,"StudyData",AF37, "Bar",, "Close","D","-5","All",,,,"T"),3)="777",NA(),IF(RTD("cqg.rtd",,"StudyData",AF37, "Bar",, "Close","D","-5","All",,,,"T")="",NA(),RTD("cqg.rtd",,"StudyData",AF37, "Bar",, "Close","D","-5","All",,,,"T"))) -> -0.45 | AK37: =IF(LEFT(RTD("cqg.rtd",,"StudyData",AF37, "Bar",, "Close","D","-20","All",,,,"T"),3)="777",NA(),IF(RTD("cqg.rtd",,"StudyData",AF37, "Bar",, "Close","D","-20","All",,,,"T")="",NA(),RTD("cqg.rtd",,"StudyData",AF37, "Bar",, "Close","D","-20","All",,,,"T"))) -> -0.315 | AL37: -0.005 | AM37: -0.005 | AN37: -0.14
B38: =RTD("cqg.rtd",,"StudyData",Q14, "Bar",, "Close","D","-1","All",,,,"T") -> 96.545 | C38: =RTD("cqg.rtd",,"StudyData",Q14, "Bar",, "Close","D","-5","All",,,,"T") -> 96.635 | D38: =RTD("cqg.rtd",,"StudyData",Q14, "Bar",, "Close","D","-20","All",,,,"T") -> 96.235 | E38: 0.025 | F38: -0.065 | G38: 0.335 | Q38: =RTD("cqg.rtd",,"ContractData",Q1&"?4", "Symbol") -> SO3Z23 | R38: 4 | S38: =RTD("cqg.rtd",,"ContractData",Q1&"?4", "Symbol") -> SO3Z23 | T38: 5 | U38: SO3S1?5 | V38: =IF(LEFT(RTD("cqg.rtd", ,"ContractData", U38,"LastTradeorSettle",,"T"),3)="768",NA(),IF(RTD("cqg.rtd", ,"ContractData", U38,"LastTradeorSettle",,"T")="",NA(),RTD("cqg.rtd", ,"ContractData", U38,"LastTradeorSettle",,"T"))) -> -0.225 | X38: =IF(LEFT(RTD("cqg.rtd",,"StudyData",U38, "Bar",, "Close","D","-1","All",,,,"T"),3)="777",NA(),IF(RTD("cqg.rtd",,"StudyData",U38, "Bar",, "Close","D","-1","All",,,,"T")="",NA(),RTD("cqg.rtd",,"StudyData",U38, "Bar",, "Close","D","-1","All",,,,"T"))) -> -0.23 | Y38: =IF(LEFT(RTD("cqg.rtd",,"StudyData",U38, "Bar",, "Close","D","-5","All",,,,"T"),3)="777",NA(),IF(RTD("cqg.rtd",,"StudyData",U38, "Bar",, "Close","D","-5","All",,,,"T")="",NA(),RTD("cqg.rtd",,"StudyData",U38, "Bar",, "Close","D","-5","All",,,,"T"))) -> -0.215 | Z38: =IF(LEFT(RTD("cqg.rtd",,"StudyData",U38, "Bar",, "Close","D","-20","All",,,,"T"),3)="777",NA(),IF(RTD("cqg.rtd",,"StudyData",U38, "Bar",, "Close","D","-20","All",,,,"T")="",NA(),RTD("cqg.rtd",,"StudyData",U38, "Bar",, "Close","D","-20","All",,,,"T"))) -> -0.175 | AA38: 0.005 | AB38: -0.01 | AC38: -0.05 | AE38: 5 | AF38: SO3S2?5 | AG38: =IF(LEFT(RTD("cqg.rtd", ,"ContractData", AF38,"LastTradeorSettle",,"T"),3)="768",NA(),IF(RTD("cqg.rtd", ,"ContractData", AF38,"LastTradeorSettle",,"T")="",NA(),RTD("cqg.rtd", ,"ContractData", AF38,"LastTradeorSettle",,"T"))) -> -0.39 | AI38: =IF(LEFT(RTD("cqg.rtd",,"StudyData",AF38, "Bar",, "Close","D","-1","All",,,,"T"),3)="777",NA(),IF(RTD("cqg.rtd",,"StudyData",AF38, "Bar",, "Close","D","-1","All",,,,"T")="",NA(),RTD("cqg.rtd",,"StudyData",AF38, "Bar",, "Close","D","-1","All",,,,"T"))) -> -0.385 | AJ38: =IF(LEFT(RTD("cqg.rtd",,"StudyData",AF38, "Bar",, "Close","D","-5","All",,,,"T"),3)="777",NA(),IF(RTD("cqg.rtd",,"StudyData",AF38, "Bar",, "Close","D","-5","All",,,,"T")="",NA(),RTD("cqg.rtd",,"StudyData",AF38, "Bar",, "Close","D","-5","All",,,,"T"))) -> -0.37 | AK38: =IF(LEFT(RTD("cqg.rtd",,"StudyData",AF38, "Bar",, "Close","D","-20","All",,,,"T"),3)="777",NA(),IF(RTD("cqg.rtd",,"StudyData",AF38, "Bar",, "Close","D","-20","All",,,,"T")="",NA(),RTD("cqg.rtd",,"StudyData",AF38, "Bar",, "Close","D","-20","All",,,,"T"))) -> -0.33 | AL38: -0.005 | AM38: -0.02 | AN38: -0.06
B39: =RTD("cqg.rtd",,"StudyData",Q15, "Bar",, "Close","D","-1","All",,,,"T") -> 96.59 | C39: =RTD("cqg.rtd",,"StudyData",Q15, "Bar",, "Close","D","-5","All",,,,"T") -> 96.665 | D39: =RTD("cqg.rtd",,"StudyData",Q15, "Bar",, "Close","D","-20","All",,,,"T") -> 96.29 | E39: 0.025 | F39: -0.05 | G39: 0.325 | R39: 5 | T39: 6 | U39: SO3S1?6 | V39: =IF(LEFT(RTD("cqg.rtd", ,"ContractData", U39,"LastTradeorSettle",,"T"),3)="768",NA(),IF(RTD("cqg.rtd", ,"ContractData", U39,"LastTradeorSettle",,"T")="",NA(),RTD("cqg.rtd", ,"ContractData", U39,"LastTradeorSettle",,"T"))) -> -0.16 | X39: =IF(LEFT(RTD("cqg.rtd",,"StudyData",U39, "Bar",, "Close","D","-1","All",,,,"T"),3)="777",NA(),IF(RTD("cqg.rtd",,"StudyData",U39, "Bar",, "Close","D","-1","All",,,,"T")="",NA(),RTD("cqg.rtd",,"StudyData",U39, "Bar",, "Close","D","-1","All",,,,"T"))) -> -0.16 | Y39: =IF(LEFT(RTD("cqg.rtd",,"StudyData",U39, "Bar",, "Close","D","-5","All",,,,"T"),3)="777",NA(),IF(RTD("cqg.rtd",,"StudyData",U39, "Bar",, "Close","D","-5","All",,,,"T")="",NA(),RTD("cqg.rtd",,"StudyData",U39, "Bar",, "Close","D","-5","All",,,,"T"))) -> -0.155 | Z39: =IF(LEFT(RTD("cqg.rtd",,"StudyData",U39, "Bar",, "Close","D","-20","All",,,,"T"),3)="777",NA(),IF(RTD("cqg.rtd",,"StudyData",U39, "Bar",, "Close","D","-20","All",,,,"T")="",NA(),RTD("cqg.rtd",,"StudyData",U39, "Bar",, "Close","D","-20","All",,,,"T"))) -> -0.15 | AA39: 0 | AB39: -0.005 | AC39: -0.01 | AE39: 6 | AF39: SO3S2?6 | AG39: =IF(LEFT(RTD("cqg.rtd", ,"ContractData", AF39,"LastTradeorSettle",,"T"),3)="768",NA(),IF(RTD("cqg.rtd", ,"ContractData", AF39,"LastTradeorSettle",,"T")="",NA(),RTD("cqg.rtd", ,"ContractData", AF39,"LastTradeorSettle",,"T"))) -> -0.245 | AI39: =IF(LEFT(RTD("cqg.rtd",,"StudyData",AF39, "Bar",, "Close","D","-1","All",,,,"T"),3)="777",NA(),IF(RTD("cqg.rtd",,"StudyData",AF39, "Bar",, "Close","D","-1","All",,,,"T")="",NA(),RTD("cqg.rtd",,"StudyData",AF39, "Bar",, "Close","D","-1","All",,,,"T"))) -> -0.235 | AJ39: =IF(LEFT(RTD("cqg.rtd",,"StudyData",AF39, "Bar",, "Close","D","-5","All",,,,"T"),3)="777",NA(),IF(RTD("cqg.rtd",,"StudyData",AF39, "Bar",, "Close","D","-5","All",,,,"T")="",NA(),RTD("cqg.rtd",,"StudyData",AF39, "Bar",, "Close","D","-5","All",,,,"T"))) -> -0.23 | AK39: =IF(LEFT(RTD("cqg.rtd",,"StudyData",AF39, "Bar",, "Close","D","-20","All",,,,"T"),3)="777",NA(),IF(RTD("cqg.rtd",,"StudyData",AF39, "Bar",, "Close","D","-20","All",,,,"T")="",NA(),RTD("cqg.rtd",,"StudyData",AF39, "Bar",, "Close","D","-20","All",,,,"T"))) -> -0.27 | AL39: -0.01 | AM39: -0.015 | AN39: 0.025
B40: =RTD("cqg.rtd",,"StudyData",Q16, "Bar",, "Close","D","-1","All",,,,"T") -> 96.64 | C40: =RTD("cqg.rtd",,"StudyData",Q16, "Bar",, "Close","D","-5","All",,,,"T") -> 96.705 | D40: =RTD("cqg.rtd",,"StudyData",Q16, "Bar",, "Close","D","-20","All",,,,"T") -> 96.335 | E40: 0.01 | F40: -0.055 | G40: 0.315 | R40: 6 | T40: 7 | U40: SO3S1?7 | V40: =IF(LEFT(RTD("cqg.rtd", ,"ContractData", U40,"LastTradeorSettle",,"T"),3)="768",NA(),IF(RTD("cqg.rtd", ,"ContractData", U40,"LastTradeorSettle",,"T")="",NA(),RTD("cqg.rtd", ,"ContractData", U40,"LastTradeorSettle",,"T"))) -> -0.08 | X40: =IF(LEFT(RTD("cqg.rtd",,"StudyData",U40, "Bar",, "Close","D","-1","All",,,,"T"),3)="777",NA(),IF(RTD("cqg.rtd",,"StudyData",U40, "Bar",, "Close","D","-1","All",,,,"T")="",NA(),RTD("cqg.rtd",,"StudyData",U40, "Bar",, "Close","D","-1","All",,,,"T"))) -> -0.075 | Y40: =IF(LEFT(RTD("cqg.rtd",,"StudyData",U40, "Bar",, "Close","D","-5","All",,,,"T"),3)="777",NA(),IF(RTD("cqg.rtd",,"StudyData",U40, "Bar",, "Close","D","-5","All",,,,"T")="",NA(),RTD("cqg.rtd",,"StudyData",U40, "Bar",, "Close","D","-5","All",,,,"T"))) -> -0.075 | Z40: =IF(LEFT(RTD("cqg.rtd",,"StudyData",U40, "Bar",, "Close","D","-20","All",,,,"T"),3)="777",NA(),IF(RTD("cqg.rtd",,"StudyData",U40, "Bar",, "Close","D","-20","All",,,,"T")="",NA(),RTD("cqg.rtd",,"StudyData",U40, "Bar",, "Close","D","-20","All",,,,"T"))) -> -0.115 | AA40: -0.005 | AB40: -0.005 | AC40: 0.035 | AE40: 7 | AF40: SO3S2?7 | AG40: =IF(LEFT(RTD("cqg.rtd", ,"ContractData", AF40,"LastTradeorSettle",,"T"),3)="768",NA(),IF(RTD("cqg.rtd", ,"ContractData", AF40,"LastTradeorSettle",,"T")="",NA(),RTD("cqg.rtd", ,"ContractData", AF40,"LastTradeorSettle",,"T"))) -> -0.14 | AI40: =IF(LEFT(RTD("cqg.rtd",,"StudyData",AF40, "Bar",, "Close","D","-1","All",,,,"T"),3)="777",NA(),IF(RTD("cqg.rtd",,"StudyData",AF40, "Bar",, "Close","D","-1","All",,,,"T")="",NA(),RTD("cqg.rtd",,"StudyData",AF40, "Bar",, "Close","D","-1","All",,,,"T"))) -> -0.13 | AJ40: =IF(LEFT(RTD("cqg.rtd",,"StudyData",AF40, "Bar",, "Close","D","-5","All",,,,"T"),3)="777",NA(),IF(RTD("cqg.rtd",,"StudyData",AF40, "Bar",, "Close","D","-5","All",,,,"T")="",NA(),RTD("cqg.rtd",,"StudyData",AF40, "Bar",, "Close","D","-5","All",,,,"T"))) -> -0.12 | AK40: =IF(LEFT(RTD("cqg.rtd",,"StudyData",AF40, "Bar",, "Close","D","-20","All",,,,"T"),3)="777",NA(),IF(RTD("cqg.rtd",,"StudyData",AF40, "Bar",, "Close","D","-20","All",,,,"T")="",NA(),RTD("cqg.rtd",,"StudyData",AF40, "Bar",, "Close","D","-20","All",,,,"T"))) -> -0.215 | AL40: -0.01 | AM40: -0.02 | AN40: 0.075
B41: =RTD("cqg.rtd",,"StudyData",Q17, "Bar",, "Close","D","-1","All",,,,"T") -> 96.695 | C41: =RTD("cqg.rtd",,"StudyData",Q17, "Bar",, "Close","D","-5","All",,,,"T") -> 96.75 | D41: =RTD("cqg.rtd",,"StudyData",Q17, "Bar",, "Close","D","-20","All",,,,"T") -> 96.375 | E41: 0.02 | F41: -0.035 | G41: 0.34 | R41: 7 | T41: 8 | U41: SO3S1?8 | V41: =IF(LEFT(RTD("cqg.rtd", ,"ContractData", U41,"LastTradeorSettle",,"T"),3)="768",NA(),IF(RTD("cqg.rtd", ,"ContractData", U41,"LastTradeorSettle",,"T")="",NA(),RTD("cqg.rtd", ,"ContractData", U41,"LastTradeorSettle",,"T"))) -> -0.055 | X41: =IF(LEFT(RTD("cqg.rtd",,"StudyData",U41, "Bar",, "Close","D","-1","All",,,,"T"),3)="777",NA(),IF(RTD("cqg.rtd",,"StudyData",U41, "Bar",, "Close","D","-1","All",,,,"T")="",NA(),RTD("cqg.rtd",,"StudyData",U41, "Bar",, "Close","D","-1","All",,,,"T"))) -> -0.05 | Y41: =IF(LEFT(RTD("cqg.rtd",,"StudyData",U41, "Bar",, "Close","D","-5","All",,,,"T"),3)="777",NA(),IF(RTD("cqg.rtd",,"StudyData",U41, "Bar",, "Close","D","-5","All",,,,"T")="",NA(),RTD("cqg.rtd",,"StudyData",U41, "Bar",, "Close","D","-5","All",,,,"T"))) -> -0.05 | Z41: =IF(LEFT(RTD("cqg.rtd",,"StudyData",U41, "Bar",, "Close","D","-20","All",,,,"T"),3)="777",NA(),IF(RTD("cqg.rtd",,"StudyData",U41, "Bar",, "Close","D","-20","All",,,,"T")="",NA(),RTD("cqg.rtd",,"StudyData",U41, "Bar",, "Close","D","-20","All",,,,"T"))) -> -0.1 | AA41: -0.005 | AB41: -0.005 | AC41: 0.045 | AE41: 8 | AF41: SO3S2?8 | AG41: =IF(LEFT(RTD("cqg.rtd", ,"ContractData", AF41,"LastTradeorSettle",,"T"),3)="768",NA(),IF(RTD("cqg.rtd", ,"ContractData", AF41,"LastTradeorSettle",,"T")="",NA(),RTD("cqg.rtd", ,"ContractData", AF41,"LastTradeorSettle",,"T"))) -> -0.11 | AI41: =IF(LEFT(RTD("cqg.rtd",,"StudyData",AF41, "Bar",, "Close","D","-1","All",,,,"T"),3)="777",NA(),IF(RTD("cqg.rtd",,"StudyData",AF41, "Bar",, "Close","D","-1","All",,,,"T")="",NA(),RTD("cqg.rtd",,"StudyData",AF41, "Bar",, "Close","D","-1","All",,,,"T"))) -> -0.105 | AJ41: =IF(LEFT(RTD("cqg.rtd",,"StudyData",AF41, "Bar",, "Close","D","-5","All",,,,"T"),3)="777",NA(),IF(RTD("cqg.rtd",,"StudyData",AF41, "Bar",, "Close","D","-5","All",,,,"T")="",NA(),RTD("cqg.rtd",,"StudyData",AF41, "Bar",, "Close","D","-5","All",,,,"T"))) -> -0.09 | AK41: =IF(LEFT(RTD("cqg.rtd",,"StudyData",AF41, "Bar",, "Close","D","-20","All",,,,"T"),3)="777",NA(),IF(RTD("cqg.rtd",,"StudyData",AF41, "Bar",, "Close","D","-20","All",,,,"T")="",NA(),RTD("cqg.rtd",,"StudyData",AF41, "Bar",, "Close","D","-20","All",,,,"T"))) -> -0.185 | AL41: -0.005 | AM41: -0.02 | AN41: 0.075
B42: =RTD("cqg.rtd",,"StudyData",Q18, "Bar",, "Close","D","-1","All",,,,"T") -> 96.735 | C42: =RTD("cqg.rtd",,"StudyData",Q18, "Bar",, "Close","D","-5","All",,,,"T") -> 96.785 | D42: =RTD("cqg.rtd",,"StudyData",Q18, "Bar",, "Close","D","-20","All",,,,"T") -> 96.405 | E42: 0.02 | F42: -0.03 | G42: 0.35 | R42: 8 | T42: 9 | U42: SO3S1?9 | V42: =IF(LEFT(RTD("cqg.rtd", ,"ContractData", U42,"LastTradeorSettle",,"T"),3)="768",NA(),IF(RTD("cqg.rtd", ,"ContractData", U42,"LastTradeorSettle",,"T")="",NA(),RTD("cqg.rtd", ,"ContractData", U42,"LastTradeorSettle",,"T"))) -> -0.055 | X42: =IF(LEFT(RTD("cqg.rtd",,"StudyData",U42, "Bar",, "Close","D","-1","All",,,,"T"),3)="777",NA(),IF(RTD("cqg.rtd",,"StudyData",U42, "Bar",, "Close","D","-1","All",,,,"T")="",NA(),RTD("cqg.rtd",,"StudyData",U42, "Bar",, "Close","D","-1","All",,,,"T"))) -> -0.05 | Y42: =IF(LEFT(RTD("cqg.rtd",,"StudyData",U42, "Bar",, "Close","D","-5","All",,,,"T"),3)="777",NA(),IF(RTD("cqg.rtd",,"StudyData",U42, "Bar",, "Close","D","-5","All",,,,"T")="",NA(),RTD("cqg.rtd",,"StudyData",U42, "Bar",, "Close","D","-5","All",,,,"T"))) -> -0.04 | Z42: =IF(LEFT(RTD("cqg.rtd",,"StudyData",U42, "Bar",, "Close","D","-20","All",,,,"T"),3)="777",NA(),IF(RTD("cqg.rtd",,"StudyData",U42, "Bar",, "Close","D","-20","All",,,,"T")="",NA(),RTD("cqg.rtd",,"StudyData",U42, "Bar",, "Close","D","-20","All",,,,"T"))) -> -0.085 | AA42: -0.005 | AB42: -0.015 | AC42: 0.03 | AE42: 9 | AF42: SO3S2?9 | AG42: =IF(LEFT(RTD("cqg.rtd", ,"ContractData", AF42,"LastTradeorSettle",,"T"),3)="768",NA(),IF(RTD("cqg.rtd", ,"ContractData", AF42,"LastTradeorSettle",,"T")="",NA(),RTD("cqg.rtd", ,"ContractData", AF42,"LastTradeorSettle",,"T"))) -> -0.11 | AI42: =IF(LEFT(RTD("cqg.rtd",,"StudyData",AF42, "Bar",, "Close","D","-1","All",,,,"T"),3)="777",NA(),IF(RTD("cqg.rtd",,"StudyData",AF42, "Bar",, "Close","D","-1","All",,,,"T")="",NA(),RTD("cqg.rtd",,"StudyData",AF42, "Bar",, "Close","D","-1","All",,,,"T"))) -> -0.105 | AJ42: =IF(LEFT(RTD("cqg.rtd",,"StudyData",AF42, "Bar",, "Close","D","-5","All",,,,"T"),3)="777",NA(),IF(RTD("cqg.rtd",,"StudyData",AF42, "Bar",, "Close","D","-5","All",,,,"T")="",NA(),RTD("cqg.rtd",,"StudyData",AF42, "Bar",, "Close","D","-5","All",,,,"T"))) -> -0.09 | AK42: =IF(LEFT(RTD("cqg.rtd",,"StudyData",AF42, "Bar",, "Close","D","-20","All",,,,"T"),3)="777",NA(),IF(RTD("cqg.rtd",,"StudyData",AF42, "Bar",, "Close","D","-20","All",,,,"T")="",NA(),RTD("cqg.rtd",,"StudyData",AF42, "Bar",, "Close","D","-20","All",,,,"T"))) -> -0.155 | AL42: -0.005 | AM42: -0.02 | AN42: 0.045
B43: =RTD("cqg.rtd",,"StudyData",Q19, "Bar",, "Close","D","-1","All",,,,"T") -> 96.765 | C43: =RTD("cqg.rtd",,"StudyData",Q19, "Bar",, "Close","D","-5","All",,,,"T") -> 96.815 | D43: =RTD("cqg.rtd",,"StudyData",Q19, "Bar",, "Close","D","-20","All",,,,"T") -> 96.435 | E43: -0.025 | F43: -0.075 | G43: 0.305 | R43: 9 | T43: 10 | U43: SO3S1?10 | V43: =IF(LEFT(RTD("cqg.rtd", ,"ContractData", U43,"LastTradeorSettle",,"T"),3)="768",NA(),IF(RTD("cqg.rtd", ,"ContractData", U43,"LastTradeorSettle",,"T")="",NA(),RTD("cqg.rtd", ,"ContractData", U43,"LastTradeorSettle",,"T"))) -> -0.055 | X43: =IF(LEFT(RTD("cqg.rtd",,"StudyData",U43, "Bar",, "Close","D","-1","All",,,,"T"),3)="777",NA(),IF(RTD("cqg.rtd",,"StudyData",U43, "Bar",, "Close","D","-1","All",,,,"T")="",NA(),RTD("cqg.rtd",,"StudyData",U43, "Bar",, "Close","D","-1","All",,,,"T"))) -> -0.055 | Y43: =IF(LEFT(RTD("cqg.rtd",,"StudyData",U43, "Bar",, "Close","D","-5","All",,,,"T"),3)="777",NA(),IF(RTD("cqg.rtd",,"StudyData",U43, "Bar",, "Close","D","-5","All",,,,"T")="",NA(),RTD("cqg.rtd",,"StudyData",U43, "Bar",, "Close","D","-5","All",,,,"T"))) -> -0.05 | Z43: =IF(LEFT(RTD("cqg.rtd",,"StudyData",U43, "Bar",, "Close","D","-20","All",,,,"T"),3)="777",NA(),IF(RTD("cqg.rtd",,"StudyData",U43, "Bar",, "Close","D","-20","All",,,,"T")="",NA(),RTD("cqg.rtd",,"StudyData",U43, "Bar",, "Close","D","-20","All",,,,"T"))) -> -0.07 | AA43: 0 | AB43: -0.005 | AC43: 0.015 | AE43: 10 | AF43: SO3S2?10 | AG43: =IF(LEFT(RTD("cqg.rtd", ,"ContractData", AF43,"LastTradeorSettle",,"T"),3)="768",NA(),IF(RTD("cqg.rtd", ,"ContractData", AF43,"LastTradeorSettle",,"T")="",NA(),RTD("cqg.rtd", ,"ContractData", AF43,"LastTradeorSettle",,"T"))) -> -0.115 | AI43: =IF(LEFT(RTD("cqg.rtd",,"StudyData",AF43, "Bar",, "Close","D","-1","All",,,,"T"),3)="777",NA(),IF(RTD("cqg.rtd",,"StudyData",AF43, "Bar",, "Close","D","-1","All",,,,"T")="",NA(),RTD("cqg.rtd",,"StudyData",AF43, "Bar",, "Close","D","-1","All",,,,"T"))) -> -0.115 | AJ43: =IF(LEFT(RTD("cqg.rtd",,"StudyData",AF43, "Bar",, "Close","D","-5","All",,,,"T"),3)="777",NA(),IF(RTD("cqg.rtd",,"StudyData",AF43, "Bar",, "Close","D","-5","All",,,,"T")="",NA(),RTD("cqg.rtd",,"StudyData",AF43, "Bar",, "Close","D","-5","All",,,,"T"))) -> -0.1 | AK43: =IF(LEFT(RTD("cqg.rtd",,"StudyData",AF43, "Bar",, "Close","D","-20","All",,,,"T"),3)="777",NA(),IF(RTD("cqg.rtd",,"StudyData",AF43, "Bar",, "Close","D","-20","All",,,,"T")="",NA(),RTD("cqg.rtd",,"StudyData",AF43, "Bar",, "Close","D","-20","All",,,,"T"))) -> -0.135 | AL43: 0 | AM43: -0.015 | AN43: 0.02
B44: =IFERROR( RTD("cqg.rtd",,"StudyData",Q20, "Bar",, "Close","D","-1","All",,,,"T"),NA()) -> 96.785 | C44: =IF(RTD("cqg.rtd",,"StudyData",Q20, "Bar",, "Close","D","-5","All",,,,"T")="",NA(),RTD("cqg.rtd",,"StudyData",Q20, "Bar",, "Close","D","-5","All",,,,"T")) -> 96.83 | D44: =IF(RTD("cqg.rtd",,"StudyData",Q20, "Bar",, "Close","D","-20","All",,,,"T")="",NA(),RTD("cqg.rtd",,"StudyData",Q20, "Bar",, "Close","D","-20","All",,,,"T")) -> 96.46 | E44: =IFERROR( R20-B44,NA()) -> -0.03 | F44: =IFERROR( R20-C44,NA()) -> -0.075 | G44: =IFERROR( R20-D44,NA()) -> 0.295 | R44: 10 | T44: 11 | U44: SO3S1?11 | V44: =IF(LEFT(RTD("cqg.rtd", ,"ContractData", U44,"LastTradeorSettle",,"T"),3)="768",NA(),IF(RTD("cqg.rtd", ,"ContractData", U44,"LastTradeorSettle",,"T")="",NA(),RTD("cqg.rtd", ,"ContractData", U44,"LastTradeorSettle",,"T"))) -> -0.055 | X44: =IF(LEFT(RTD("cqg.rtd",,"StudyData",U44, "Bar",, "Close","D","-1","All",,,,"T"),3)="777",NA(),IF(RTD("cqg.rtd",,"StudyData",U44, "Bar",, "Close","D","-1","All",,,,"T")="",NA(),RTD("cqg.rtd",,"StudyData",U44, "Bar",, "Close","D","-1","All",,,,"T"))) -> -0.06 | Y44: =IF(LEFT(RTD("cqg.rtd",,"StudyData",U44, "Bar",, "Close","D","-5","All",,,,"T"),3)="777",NA(),IF(RTD("cqg.rtd",,"StudyData",U44, "Bar",, "Close","D","-5","All",,,,"T")="",NA(),RTD("cqg.rtd",,"StudyData",U44, "Bar",, "Close","D","-5","All",,,,"T"))) -> -0.055 | Z44: =IF(LEFT(RTD("cqg.rtd",,"StudyData",U44, "Bar",, "Close","D","-20","All",,,,"T"),3)="777",NA(),IF(RTD("cqg.rtd",,"StudyData",U44, "Bar",, "Close","D","-20","All",,,,"T")="",NA(),RTD("cqg.rtd",,"StudyData",U44, "Bar",, "Close","D","-20","All",,,,"T"))) -> -0.065 | AA44: 0.005 | AB44: 0 | AC44: 0.01 | AE44: 11 | AF44: SO3S2?11 | AG44: =IF(LEFT(RTD("cqg.rtd", ,"ContractData", AF44,"LastTradeorSettle",,"T"),3)="768",NA(),IF(RTD("cqg.rtd", ,"ContractData", AF44,"LastTradeorSettle",,"T")="",NA(),RTD("cqg.rtd", ,"ContractData", AF44,"LastTradeorSettle",,"T"))) -> -0.105 | AI44: =IF(LEFT(RTD("cqg.rtd",,"StudyData",AF44, "Bar",, "Close","D","-1","All",,,,"T"),3)="777",NA(),IF(RTD("cqg.rtd",,"StudyData",AF44, "Bar",, "Close","D","-1","All",,,,"T")="",NA(),RTD("cqg.rtd",,"StudyData",AF44, "Bar",, "Close","D","-1","All",,,,"T"))) -> -0.11 | AJ44: =IF(LEFT(RTD("cqg.rtd",,"StudyData",AF44, "Bar",, "Close","D","-5","All",,,,"T"),3)="777",NA(),IF(RTD("cqg.rtd",,"StudyData",AF44, "Bar",, "Close","D","-5","All",,,,"T")="",NA(),RTD("cqg.rtd",,"StudyData",AF44, "Bar",, "Close","D","-5","All",,,,"T"))) -> -0.095 | AK44: =IF(LEFT(RTD("cqg.rtd",,"StudyData",AF44, "Bar",, "Close","D","-20","All",,,,"T"),3)="777",NA(),IF(RTD("cqg.rtd",,"StudyData",AF44, "Bar",, "Close","D","-20","All",,,,"T")="",NA(),RTD("cqg.rtd",,"StudyData",AF44, "Bar",, "Close","D","-20","All",,,,"T"))) -> -0.12 | AL44: 0.005 | AM44: -0.01 | AN44: 0.015
B45: =IFERROR( RTD("cqg.rtd",,"StudyData",Q21, "Bar",, "Close","D","-1","All",,,,"T"),"") -> 96.795 | C45: =IF(RTD("cqg.rtd",,"StudyData",Q21, "Bar",, "Close","D","-5","All",,,,"T")="",NA(),RTD("cqg.rtd",,"StudyData",Q21, "Bar",, "Close","D","-5","All",,,,"T")) -> 96.835 | D45: =IF(RTD("cqg.rtd",,"StudyData",Q21, "Bar",, "Close","D","-20","All",,,,"T")="",NA(),RTD("cqg.rtd",,"StudyData",Q21, "Bar",, "Close","D","-20","All",,,,"T")) -> 96.485 | E45: =IFERROR( R21-B45,NA()) -> -0.03 | F45: =IFERROR( R21-C45,NA()) -> -0.07 | G45: =IFERROR( R21-D45,NA()) -> 0.28 | R45: 11 | T45: 12 | U45: SO3S1?12 | V45: =IF(LEFT(RTD("cqg.rtd", ,"ContractData", U45,"LastTradeorSettle",,"T"),3)="768",NA(),IF(RTD("cqg.rtd", ,"ContractData", U45,"LastTradeorSettle",,"T")="",NA(),RTD("cqg.rtd", ,"ContractData", U45,"LastTradeorSettle",,"T"))) -> -0.05 | X45: =IF(LEFT(RTD("cqg.rtd",,"StudyData",U45, "Bar",, "Close","D","-1","All",,,,"T"),3)="777",NA(),IF(RTD("cqg.rtd",,"StudyData",U45, "Bar",, "Close","D","-1","All",,,,"T")="",NA(),RTD("cqg.rtd",,"StudyData",U45, "Bar",, "Close","D","-1","All",,,,"T"))) -> -0.05 | Y45: =IF(LEFT(RTD("cqg.rtd",,"StudyData",U45, "Bar",, "Close","D","-5","All",,,,"T"),3)="777",NA(),IF(RTD("cqg.rtd",,"StudyData",U45, "Bar",, "Close","D","-5","All",,,,"T")="",NA(),RTD("cqg.rtd",,"StudyData",U45, "Bar",, "Close","D","-5","All",,,,"T"))) -> -0.04 | Z45: =IF(LEFT(RTD("cqg.rtd",,"StudyData",U45, "Bar",, "Close","D","-20","All",,,,"T"),3)="777",NA(),IF(RTD("cqg.rtd",,"StudyData",U45, "Bar",, "Close","D","-20","All",,,,"T")="",NA(),RTD("cqg.rtd",,"StudyData",U45, "Bar",, "Close","D","-20","All",,,,"T"))) -> -0.055 | AA45: 0 | AB45: -0.01 | AC45: 0.005 | AE45: 12 | AF45: SO3S2?12 | AG45: =IF(LEFT(RTD("cqg.rtd", ,"ContractData", AF45,"LastTradeorSettle",,"T"),3)="768",NA(),IF(RTD("cqg.rtd", ,"ContractData", AF45,"LastTradeorSettle",,"T")="",NA(),RTD("cqg.rtd", ,"ContractData", AF45,"LastTradeorSettle",,"T"))) -> -0.085 | AI45: =IF(LEFT(RTD("cqg.rtd",,"StudyData",AF45, "Bar",, "Close","D","-1","All",,,,"T"),3)="777",NA(),IF(RTD("cqg.rtd",,"StudyData",AF45, "Bar",, "Close","D","-1","All",,,,"T")="",NA(),RTD("cqg.rtd",,"StudyData",AF45, "Bar",, "Close","D","-1","All",,,,"T"))) -> -0.095 | AJ45: =IF(LEFT(RTD("cqg.rtd",,"StudyData",AF45, "Bar",, "Close","D","-5","All",,,,"T"),3)="777",NA(),IF(RTD("cqg.rtd",,"StudyData",AF45, "Bar",, "Close","D","-5","All",,,,"T")="",NA(),RTD("cqg.rtd",,"StudyData",AF45, "Bar",, "Close","D","-5","All",,,,"T"))) -> -0.075 | AK45: =IF(LEFT(RTD("cqg.rtd",,"StudyData",AF45, "Bar",, "Close","D","-20","All",,,,"T"),3)="777",NA(),IF(RTD("cqg.rtd",,"StudyData",AF45, "Bar",, "Close","D","-20","All",,,,"T")="",NA(),RTD("cqg.rtd",,"StudyData",AF45, "Bar",, "Close","D","-20","All",,,,"T"))) -> -0.11 | AL45: 0.01 | AM45: -0.01 | AN45: 0.025
R46: 12 | T46: 13 | U46: SO3S1?13 | V46: =IF(LEFT(RTD("cqg.rtd", ,"ContractData", U46,"LastTradeorSettle",,"T"),3)="768",NA(),IF(RTD("cqg.rtd", ,"ContractData", U46,"LastTradeorSettle",,"T")="",NA(),RTD("cqg.rtd", ,"ContractData", U46,"LastTradeorSettle",,"T"))) -> -0.04 | X46: =IF(LEFT(RTD("cqg.rtd",,"StudyData",U46, "Bar",, "Close","D","-1","All",,,,"T"),3)="777",NA(),IF(RTD("cqg.rtd",,"StudyData",U46, "Bar",, "Close","D","-1","All",,,,"T")="",NA(),RTD("cqg.rtd",,"StudyData",U46, "Bar",, "Close","D","-1","All",,,,"T"))) -> -0.04 | Y46: =IF(LEFT(RTD("cqg.rtd",,"StudyData",U46, "Bar",, "Close","D","-5","All",,,,"T"),3)="777",NA(),IF(RTD("cqg.rtd",,"StudyData",U46, "Bar",, "Close","D","-5","All",,,,"T")="",NA(),RTD("cqg.rtd",,"StudyData",U46, "Bar",, "Close","D","-5","All",,,,"T"))) -> -0.03 | Z46: =IF(LEFT(RTD("cqg.rtd",,"StudyData",U46, "Bar",, "Close","D","-20","All",,,,"T"),3)="777",NA(),IF(RTD("cqg.rtd",,"StudyData",U46, "Bar",, "Close","D","-20","All",,,,"T")="",NA(),RTD("cqg.rtd",,"StudyData",U46, "Bar",, "Close","D","-20","All",,,,"T"))) -> -0.055 | AA46: 0 | AB46: -0.01 | AC46: 0.015 | AE46: 13 | AF46: SO3S2?13 | AG46: =IF(LEFT(RTD("cqg.rtd", ,"ContractData", AF46,"LastTradeorSettle",,"T"),3)="768",NA(),IF(RTD("cqg.rtd", ,"ContractData", AF46,"LastTradeorSettle",,"T")="",NA(),RTD("cqg.rtd", ,"ContractData", AF46,"LastTradeorSettle",,"T"))) -> -0.08 | AI46: =IF(LEFT(RTD("cqg.rtd",,"StudyData",AF46, "Bar",, "Close","D","-1","All",,,,"T"),3)="777",NA(),IF(RTD("cqg.rtd",,"StudyData",AF46, "Bar",, "Close","D","-1","All",,,,"T")="",NA(),RTD("cqg.rtd",,"StudyData",AF46, "Bar",, "Close","D","-1","All",,,,"T"))) -> -0.085 | AJ46: =IF(LEFT(RTD("cqg.rtd",,"StudyData",AF46, "Bar",, "Close","D","-5","All",,,,"T"),3)="777",NA(),IF(RTD("cqg.rtd",,"StudyData",AF46, "Bar",, "Close","D","-5","All",,,,"T")="",NA(),RTD("cqg.rtd",,"StudyData",AF46, "Bar",, "Close","D","-5","All",,,,"T"))) -> -0.065 | AK46: =IF(LEFT(RTD("cqg.rtd",,"StudyData",AF46, "Bar",, "Close","D","-20","All",,,,"T"),3)="777",NA(),IF(RTD("cqg.rtd",,"StudyData",AF46, "Bar",, "Close","D","-20","All",,,,"T")="",NA(),RTD("cqg.rtd",,"StudyData",AF46, "Bar",, "Close","D","-20","All",,,,"T"))) -> -0.11 | AL46: 0.005 | AM46: -0.015 | AN46: 0.03
R47: 13 | T47: 14 | U47: SO3S1?14 | V47: =IF(LEFT(RTD("cqg.rtd", ,"ContractData", U47,"LastTradeorSettle",,"T"),3)="768",NA(),IF(RTD("cqg.rtd", ,"ContractData", U47,"LastTradeorSettle",,"T")="",NA(),RTD("cqg.rtd", ,"ContractData", U47,"LastTradeorSettle",,"T"))) -> -0.04 | X47: =IF(LEFT(RTD("cqg.rtd",,"StudyData",U47, "Bar",, "Close","D","-1","All",,,,"T"),3)="777",NA(),IF(RTD("cqg.rtd",,"StudyData",U47, "Bar",, "Close","D","-1","All",,,,"T")="",NA(),RTD("cqg.rtd",,"StudyData",U47, "Bar",, "Close","D","-1","All",,,,"T"))) -> -0.045 | Y47: =IF(LEFT(RTD("cqg.rtd",,"StudyData",U47, "Bar",, "Close","D","-5","All",,,,"T"),3)="777",NA(),IF(RTD("cqg.rtd",,"StudyData",U47, "Bar",, "Close","D","-5","All",,,,"T")="",NA(),RTD("cqg.rtd",,"StudyData",U47, "Bar",, "Close","D","-5","All",,,,"T"))) -> -0.035 | Z47: =IF(LEFT(RTD("cqg.rtd",,"StudyData",U47, "Bar",, "Close","D","-20","All",,,,"T"),3)="777",NA(),IF(RTD("cqg.rtd",,"StudyData",U47, "Bar",, "Close","D","-20","All",,,,"T")="",NA(),RTD("cqg.rtd",,"StudyData",U47, "Bar",, "Close","D","-20","All",,,,"T"))) -> -0.05 | AA47: 0.005 | AB47: -0.005 | AC47: 0.01 | AE47: 14 | AF47: SO3S2?14 | AG47: =IF(LEFT(RTD("cqg.rtd", ,"ContractData", AF47,"LastTradeorSettle",,"T"),3)="768",NA(),IF(RTD("cqg.rtd", ,"ContractData", AF47,"LastTradeorSettle",,"T")="",NA(),RTD("cqg.rtd", ,"ContractData", AF47,"LastTradeorSettle",,"T"))) -> -0.095 | AI47: =IF(LEFT(RTD("cqg.rtd",,"StudyData",AF47, "Bar",, "Close","D","-1","All",,,,"T"),3)="777",NA(),IF(RTD("cqg.rtd",,"StudyData",AF47, "Bar",, "Close","D","-1","All",,,,"T")="",NA(),RTD("cqg.rtd",,"StudyData",AF47, "Bar",, "Close","D","-1","All",,,,"T"))) -> -0.095 | AJ47: =IF(LEFT(RTD("cqg.rtd",,"StudyData",AF47, "Bar",, "Close","D","-5","All",,,,"T"),3)="777",NA(),IF(RTD("cqg.rtd",,"StudyData",AF47, "Bar",, "Close","D","-5","All",,,,"T")="",NA(),RTD("cqg.rtd",,"StudyData",AF47, "Bar",, "Close","D","-5","All",,,,"T"))) -> -0.075 | AK47: =IF(LEFT(RTD("cqg.rtd",,"StudyData",AF47, "Bar",, "Close","D","-20","All",,,,"T"),3)="777",NA(),IF(RTD("cqg.rtd",,"StudyData",AF47, "Bar",, "Close","D","-20","All",,,,"T")="",NA(),RTD("cqg.rtd",,"StudyData",AF47, "Bar",, "Close","D","-20","All",,,,"T"))) -> -0.1 | AL47: 0 | AM47: -0.02 | AN47: 0.005
R48: 14 | T48: 15 | U48: SO3S1?15 | V48: =IF(LEFT(RTD("cqg.rtd", ,"ContractData", U48,"LastTradeorSettle",,"T"),3)="768",NA(),IF(RTD("cqg.rtd", ,"ContractData", U48,"LastTradeorSettle",,"T")="",NA(),RTD("cqg.rtd", ,"ContractData", U48,"LastTradeorSettle",,"T"))) -> -0.05 | X48: =IF(LEFT(RTD("cqg.rtd",,"StudyData",U48, "Bar",, "Close","D","-1","All",,,,"T"),3)="777",NA(),IF(RTD("cqg.rtd",,"StudyData",U48, "Bar",, "Close","D","-1","All",,,,"T")="",NA(),RTD("cqg.rtd",,"StudyData",U48, "Bar",, "Close","D","-1","All",,,,"T"))) -> -0.05 | Y48: =IF(LEFT(RTD("cqg.rtd",,"StudyData",U48, "Bar",, "Close","D","-5","All",,,,"T"),3)="777",NA(),IF(RTD("cqg.rtd",,"StudyData",U48, "Bar",, "Close","D","-5","All",,,,"T")="",NA(),RTD("cqg.rtd",,"StudyData",U48, "Bar",, "Close","D","-5","All",,,,"T"))) -> -0.04 | Z48: =IF(LEFT(RTD("cqg.rtd",,"StudyData",U48, "Bar",, "Close","D","-20","All",,,,"T"),3)="777",NA(),IF(RTD("cqg.rtd",,"StudyData",U48, "Bar",, "Close","D","-20","All",,,,"T")="",NA(),RTD("cqg.rtd",,"StudyData",U48, "Bar",, "Close","D","-20","All",,,,"T"))) -> -0.05 | AA48: 0 | AB48: -0.01 | AC48: 0 | AE48: 15 | AF48: SO3S2?15 | AG48: =IF(LEFT(RTD("cqg.rtd", ,"ContractData", AF48,"LastTradeorSettle",,"T"),3)="768",NA(),IF(RTD("cqg.rtd", ,"ContractData", AF48,"LastTradeorSettle",,"T")="",NA(),RTD("cqg.rtd", ,"ContractData", AF48,"LastTradeorSettle",,"T"))) -> -0.105 | AI48: =IF(LEFT(RTD("cqg.rtd",,"StudyData",AF48, "Bar",, "Close","D","-1","All",,,,"T"),3)="777",NA(),IF(RTD("cqg.rtd",,"StudyData",AF48, "Bar",, "Close","D","-1","All",,,,"T")="",NA(),RTD("cqg.rtd",,"StudyData",AF48, "Bar",, "Close","D","-1","All",,,,"T"))) -> -0.105 | AJ48: =IF(LEFT(RTD("cqg.rtd",,"StudyData",AF48, "Bar",, "Close","D","-5","All",,,,"T"),3)="777",NA(),IF(RTD("cqg.rtd",,"StudyData",AF48, "Bar",, "Close","D","-5","All",,,,"T")="",NA(),RTD("cqg.rtd",,"StudyData",AF48, "Bar",, "Close","D","-5","All",,,,"T"))) -> -0.09 | AK48: =IF(LEFT(RTD("cqg.rtd",,"StudyData",AF48, "Bar",, "Close","D","-20","All",,,,"T"),3)="777",NA(),IF(RTD("cqg.rtd",,"StudyData",AF48, "Bar",, "Close","D","-20","All",,,,"T")="",NA(),RTD("cqg.rtd",,"StudyData",AF48, "Bar",, "Close","D","-20","All",,,,"T"))) -> -0.09 | AL48: 0 | AM48: -0.015 | AN48: -0.015
R49: 15 | T49: 16 | U49: SO3S1?16 | V49: =IF(LEFT(RTD("cqg.rtd", ,"ContractData", U49,"LastTradeorSettle",,"T"),3)="768",NA(),IF(RTD("cqg.rtd", ,"ContractData", U49,"LastTradeorSettle",,"T")="",NA(),RTD("cqg.rtd", ,"ContractData", U49,"LastTradeorSettle",,"T"))) -> -0.055 | X49: =IF(LEFT(RTD("cqg.rtd",,"StudyData",U49, "Bar",, "Close","D","-1","All",,,,"T"),3)="777",NA(),IF(RTD("cqg.rtd",,"StudyData",U49, "Bar",, "Close","D","-1","All",,,,"T")="",NA(),RTD("cqg.rtd",,"StudyData",U49, "Bar",, "Close","D","-1","All",,,,"T"))) -> -0.05 | Y49: =IF(LEFT(RTD("cqg.rtd",,"StudyData",U49, "Bar",, "Close","D","-5","All",,,,"T"),3)="777",NA(),IF(RTD("cqg.rtd",,"StudyData",U49, "Bar",, "Close","D","-5","All",,,,"T")="",NA(),RTD("cqg.rtd",,"StudyData",U49, "Bar",, "Close","D","-5","All",,,,"T"))) -> -0.05 | Z49: =IF(LEFT(RTD("cqg.rtd",,"StudyData",U49, "Bar",, "Close","D","-20","All",,,,"T"),3)="777",NA(),IF(RTD("cqg.rtd",,"StudyData",U49, "Bar",, "Close","D","-20","All",,,,"T")="",NA(),RTD("cqg.rtd",,"StudyData",U49, "Bar",, "Close","D","-20","All",,,,"T"))) -> -0.04 | AA49: -0.005 | AB49: -0.005 | AC49: -0.015 | AE49: 16 | AF49: SO3S2?16 | AG49: =IF(LEFT(RTD("cqg.rtd", ,"ContractData", AF49,"LastTradeorSettle",,"T"),3)="768",NA(),IF(RTD("cqg.rtd", ,"ContractData", AF49,"LastTradeorSettle",,"T")="",NA(),RTD("cqg.rtd", ,"ContractData", AF49,"LastTradeorSettle",,"T"))) -> -0.095 | AI49: =IF(LEFT(RTD("cqg.rtd",,"StudyData",AF49, "Bar",, "Close","D","-1","All",,,,"T"),3)="777",NA(),IF(RTD("cqg.rtd",,"StudyData",AF49, "Bar",, "Close","D","-1","All",,,,"T")="",NA(),RTD("cqg.rtd",,"StudyData",AF49, "Bar",, "Close","D","-1","All",,,,"T"))) -> -0.09 | AJ49: =IF(LEFT(RTD("cqg.rtd",,"StudyData",AF49, "Bar",, "Close","D","-5","All",,,,"T"),3)="777",NA(),IF(RTD("cqg.rtd",,"StudyData",AF49, "Bar",, "Close","D","-5","All",,,,"T")="",NA(),RTD("cqg.rtd",,"StudyData",AF49, "Bar",, "Close","D","-5","All",,,,"T"))) -> -0.085 | AK49: =IF(LEFT(RTD("cqg.rtd",,"StudyData",AF49, "Bar",, "Close","D","-20","All",,,,"T"),3)="777",NA(),IF(RTD("cqg.rtd",,"StudyData",AF49, "Bar",, "Close","D","-20","All",,,,"T")="",NA(),RTD("cqg.rtd",,"StudyData",AF49, "Bar",, "Close","D","-20","All",,,,"T"))) -> -0.075 | AL49: -0.005 | AM49: -0.01 | AN49: -0.02
R50: 16 | T50: 17 | U50: SO3S1?17 | V50: =IF(LEFT(RTD("cqg.rtd", ,"ContractData", U50,"LastTradeorSettle",,"T"),3)="768",NA(),IF(RTD("cqg.rtd", ,"ContractData", U50,"LastTradeorSettle",,"T")="",NA(),RTD("cqg.rtd", ,"ContractData", U50,"LastTradeorSettle",,"T"))) -> -0.04 | X50: =IF(LEFT(RTD("cqg.rtd",,"StudyData",U50, "Bar",, "Close","D","-1","All",,,,"T"),3)="777",NA(),IF(RTD("cqg.rtd",,"StudyData",U50, "Bar",, "Close","D","-1","All",,,,"T")="",NA(),RTD("cqg.rtd",,"StudyData",U50, "Bar",, "Close","D","-1","All",,,,"T"))) -> -0.04 | Y50: =IF(LEFT(RTD("cqg.rtd",,"StudyData",U50, "Bar",, "Close","D","-5","All",,,,"T"),3)="777",NA(),IF(RTD("cqg.rtd",,"StudyData",U50, "Bar",, "Close","D","-5","All",,,,"T")="",NA(),RTD("cqg.rtd",,"StudyData",U50, "Bar",, "Close","D","-5","All",,,,"T"))) -> -0.035 | Z50: =IF(LEFT(RTD("cqg.rtd",,"StudyData",U50, "Bar",, "Close","D","-20","All",,,,"T"),3)="777",NA(),IF(RTD("cqg.rtd",,"StudyData",U50, "Bar",, "Close","D","-20","All",,,,"T")="",NA(),RTD("cqg.rtd",,"StudyData",U50, "Bar",, "Close","D","-20","All",,,,"T"))) -> -0.035 | AA50: 0 | AB50: -0.005 | AC50: -0.005 | AE50: 17 | AF50: SO3S2?17 | AG50: =IF(LEFT(RTD("cqg.rtd", ,"ContractData", AF50,"LastTradeorSettle",,"T"),3)="768",NA(),IF(RTD("cqg.rtd", ,"ContractData", AF50,"LastTradeorSettle",,"T")="",NA(),RTD("cqg.rtd", ,"ContractData", AF50,"LastTradeorSettle",,"T"))) -> -0.075 | AI50: =IF(LEFT(RTD("cqg.rtd",,"StudyData",AF50, "Bar",, "Close","D","-1","All",,,,"T"),3)="777",NA(),IF(RTD("cqg.rtd",,"StudyData",AF50, "Bar",, "Close","D","-1","All",,,,"T")="",NA(),RTD("cqg.rtd",,"StudyData",AF50, "Bar",, "Close","D","-1","All",,,,"T"))) -> -0.075 | AJ50: =IF(LEFT(RTD("cqg.rtd",,"StudyData",AF50, "Bar",, "Close","D","-5","All",,,,"T"),3)="777",NA(),IF(RTD("cqg.rtd",,"StudyData",AF50, "Bar",, "Close","D","-5","All",,,,"T")="",NA(),RTD("cqg.rtd",,"StudyData",AF50, "Bar",, "Close","D","-5","All",,,,"T"))) -> -0.06 | AK50: =IF(LEFT(RTD("cqg.rtd",,"StudyData",AF50, "Bar",, "Close","D","-20","All",,,,"T"),3)="777",NA(),IF(RTD("cqg.rtd",,"StudyData",AF50, "Bar",, "Close","D","-20","All",,,,"T")="",NA(),RTD("cqg.rtd",,"StudyData",AF50, "Bar",, "Close","D","-20","All",,,,"T"))) -> -0.06 | AL50: 0 | AM50: -0.015 | AN50: -0.015
R51: 17 | T51: 18 | U51: SO3S1?18 | V51: =IF(LEFT(RTD("cqg.rtd", ,"ContractData", U51,"LastTradeorSettle",,"T"),3)="768",NA(),IF(RTD("cqg.rtd", ,"ContractData", U51,"LastTradeorSettle",,"T")="",NA(),RTD("cqg.rtd", ,"ContractData", U51,"LastTradeorSettle",,"T"))) -> -0.035 | X51: =IF(LEFT(RTD("cqg.rtd",,"StudyData",U51, "Bar",, "Close","D","-1","All",,,,"T"),3)="777",NA(),IF(RTD("cqg.rtd",,"StudyData",U51, "Bar",, "Close","D","-1","All",,,,"T")="",NA(),RTD("cqg.rtd",,"StudyData",U51, "Bar",, "Close","D","-1","All",,,,"T"))) -> -0.035 | Y51: =IF(LEFT(RTD("cqg.rtd",,"StudyData",U51, "Bar",, "Close","D","-5","All",,,,"T"),3)="777",NA(),IF(RTD("cqg.rtd",,"StudyData",U51, "Bar",, "Close","D","-5","All",,,,"T")="",NA(),RTD("cqg.rtd",,"StudyData",U51, "Bar",, "Close","D","-5","All",,,,"T"))) -> -0.03 | Z51: =IF(LEFT(RTD("cqg.rtd",,"StudyData",U51, "Bar",, "Close","D","-20","All",,,,"T"),3)="777",NA(),IF(RTD("cqg.rtd",,"StudyData",U51, "Bar",, "Close","D","-20","All",,,,"T")="",NA(),RTD("cqg.rtd",,"StudyData",U51, "Bar",, "Close","D","-20","All",,,,"T"))) -> -0.03 | AA51: 0 | AB51: -0.005 | AC51: -0.005 | AE51: 18 | AF51: SO3S2?18 | AG51: =IF(LEFT(RTD("cqg.rtd", ,"ContractData", AF51,"LastTradeorSettle",,"T"),3)="768",NA(),IF(RTD("cqg.rtd", ,"ContractData", AF51,"LastTradeorSettle",,"T")="",NA(),RTD("cqg.rtd", ,"ContractData", AF51,"LastTradeorSettle",,"T"))) -> -0.055 | AI51: =IF(LEFT(RTD("cqg.rtd",,"StudyData",AF51, "Bar",, "Close","D","-1","All",,,,"T"),3)="777",NA(),IF(RTD("cqg.rtd",,"StudyData",AF51, "Bar",, "Close","D","-1","All",,,,"T")="",NA(),RTD("cqg.rtd",,"StudyData",AF51, "Bar",, "Close","D","-1","All",,,,"T"))) -> -0.045 | AJ51: =IF(LEFT(RTD("cqg.rtd",,"StudyData",AF51, "Bar",, "Close","D","-5","All",,,,"T"),3)="777",NA(),IF(RTD("cqg.rtd",,"StudyData",AF51, "Bar",, "Close","D","-5","All",,,,"T")="",NA(),RTD("cqg.rtd",,"StudyData",AF51, "Bar",, "Close","D","-5","All",,,,"T"))) ->  | AK51: =IF(LEFT(RTD("cqg.rtd",,"StudyData",AF51, "Bar",, "Close","D","-20","All",,,,"T"),3)="777",NA(),IF(RTD("cqg.rtd",,"StudyData",AF51, "Bar",, "Close","D","-20","All",,,,"T")="",NA(),RTD("cqg.rtd",,"StudyData",AF51, "Bar",, "Close","D","-20","All",,,,"T"))) -> -0.055 | AL51: -0.01 | AN51: 0
R52: 18 | T52: 19 | U52: SO3S1?19 | V52: =IF(LEFT(RTD("cqg.rtd", ,"ContractData", U52,"LastTradeorSettle",,"T"),3)="768",NA(),IF(RTD("cqg.rtd", ,"ContractData", U52,"LastTradeorSettle",,"T")="",NA(),RTD("cqg.rtd", ,"ContractData", U52,"LastTradeorSettle",,"T"))) -> -0.02 | X52: =IF(LEFT(RTD("cqg.rtd",,"StudyData",U52, "Bar",, "Close","D","-1","All",,,,"T"),3)="777",NA(),IF(RTD("cqg.rtd",,"StudyData",U52, "Bar",, "Close","D","-1","All",,,,"T")="",NA(),RTD("cqg.rtd",,"StudyData",U52, "Bar",, "Close","D","-1","All",,,,"T"))) -> -0.015 | Y52: =IF(LEFT(RTD("cqg.rtd",,"StudyData",U52, "Bar",, "Close","D","-5","All",,,,"T"),3)="777",NA(),IF(RTD("cqg.rtd",,"StudyData",U52, "Bar",, "Close","D","-5","All",,,,"T")="",NA(),RTD("cqg.rtd",,"StudyData",U52, "Bar",, "Close","D","-5","All",,,,"T"))) -> -0.015 | Z52: =IF(LEFT(RTD("cqg.rtd",,"StudyData",U52, "Bar",, "Close","D","-20","All",,,,"T"),3)="777",NA(),IF(RTD("cqg.rtd",,"StudyData",U52, "Bar",, "Close","D","-20","All",,,,"T")="",NA(),RTD("cqg.rtd",,"StudyData",U52, "Bar",, "Close","D","-20","All",,,,"T"))) -> -0.025 | AA52: -0.005 | AB52: -0.005 | AC52: 0.005 | AE52: 19 | AF52: SO3S2?19 | AG52: =IF(LEFT(RTD("cqg.rtd", ,"ContractData", AF52,"LastTradeorSettle",,"T"),3)="768",NA(),IF(RTD("cqg.rtd", ,"ContractData", AF52,"LastTradeorSettle",,"T")="",NA(),RTD("cqg.rtd", ,"ContractData", AF52,"LastTradeorSettle",,"T"))) ->  | AI52: =IF(LEFT(RTD("cqg.rtd",,"StudyData",AF52, "Bar",, "Close","D","-1","All",,,,"T"),3)="777",NA(),IF(RTD("cqg.rtd",,"StudyData",AF52, "Bar",, "Close","D","-1","All",,,,"T")="",NA(),RTD("cqg.rtd",,"StudyData",AF52, "Bar",, "Close","D","-1","All",,,,"T"))) ->  | AJ52: =IF(LEFT(RTD("cqg.rtd",,"StudyData",AF52, "Bar",, "Close","D","-5","All",,,,"T"),3)="777",NA(),IF(RTD("cqg.rtd",,"StudyData",AF52, "Bar",, "Close","D","-5","All",,,,"T")="",NA(),RTD("cqg.rtd",,"StudyData",AF52, "Bar",, "Close","D","-5","All",,,,"T"))) ->  | AK52: =IF(LEFT(RTD("cqg.rtd",,"StudyData",AF52, "Bar",, "Close","D","-20","All",,,,"T"),3)="777",NA(),IF(RTD("cqg.rtd",,"StudyData",AF52, "Bar",, "Close","D","-20","All",,,,"T")="",NA(),RTD("cqg.rtd",,"StudyData",AF52, "Bar",, "Close","D","-20","All",,,,"T"))) -> 
R53: 19 | T53: 20 | U53: SO3S1?20 | V53: =IF(LEFT(RTD("cqg.rtd", ,"ContractData", U53,"LastTradeorSettle",,"T"),3)="768",NA(),IF(RTD("cqg.rtd", ,"ContractData", U53,"LastTradeorSettle",,"T")="",NA(),RTD("cqg.rtd", ,"ContractData", U53,"LastTradeorSettle",,"T"))) -> -0.005 | X53: =IF(LEFT(RTD("cqg.rtd",,"StudyData",U53, "Bar",, "Close","D","-1","All",,,,"T"),3)="777",NA(),IF(RTD("cqg.rtd",,"StudyData",U53, "Bar",, "Close","D","-1","All",,,,"T")="",NA(),RTD("cqg.rtd",,"StudyData",U53, "Bar",, "Close","D","-1","All",,,,"T"))) ->  | Y53: =IF(LEFT(RTD("cqg.rtd",,"StudyData",U53, "Bar",, "Close","D","-5","All",,,,"T"),3)="777",NA(),IF(RTD("cqg.rtd",,"StudyData",U53, "Bar",, "Close","D","-5","All",,,,"T")="",NA(),RTD("cqg.rtd",,"StudyData",U53, "Bar",, "Close","D","-5","All",,,,"T"))) ->  | Z53: =IF(LEFT(RTD("cqg.rtd",,"StudyData",U53, "Bar",, "Close","D","-20","All",,,,"T"),3)="777",NA(),IF(RTD("cqg.rtd",,"StudyData",U53, "Bar",, "Close","D","-20","All",,,,"T")="",NA(),RTD("cqg.rtd",,"StudyData",U53, "Bar",, "Close","D","-20","All",,,,"T"))) -> -0.02 | AC53: 0.015 | AE53: 20 | AF53: SO3S2?20 | AG53: =IF(LEFT(RTD("cqg.rtd", ,"ContractData", AF53,"LastTradeorSettle",,"T"),3)="768",NA(),IF(RTD("cqg.rtd", ,"ContractData", AF53,"LastTradeorSettle",,"T")="",NA(),RTD("cqg.rtd", ,"ContractData", AF53,"LastTradeorSettle",,"T"))) ->  | AI53: =IF(LEFT(RTD("cqg.rtd",,"StudyData",AF53, "Bar",, "Close","D","-1","All",,,,"T"),3)="777",NA(),IF(RTD("cqg.rtd",,"StudyData",AF53, "Bar",, "Close","D","-1","All",,,,"T")="",NA(),RTD("cqg.rtd",,"StudyData",AF53, "Bar",, "Close","D","-1","All",,,,"T"))) ->  | AJ53: =IF(LEFT(RTD("cqg.rtd",,"StudyData",AF53, "Bar",, "Close","D","-5","All",,,,"T"),3)="777",NA(),IF(RTD("cqg.rtd",,"StudyData",AF53, "Bar",, "Close","D","-5","All",,,,"T")="",NA(),RTD("cqg.rtd",,"StudyData",AF53, "Bar",, "Close","D","-5","All",,,,"T"))) ->  | AK53: =IF(LEFT(RTD("cqg.rtd",,"StudyData",AF53, "Bar",, "Close","D","-20","All",,,,"T"),3)="777",NA(),IF(RTD("cqg.rtd",,"StudyData",AF53, "Bar",, "Close","D","-20","All",,,,"T")="",NA(),RTD("cqg.rtd",,"StudyData",AF53, "Bar",, "Close","D","-20","All",,,,"T"))) -> 
R54: 20 | T54: 21 | U54: SO3S1?21 | V54: =IF(LEFT(RTD("cqg.rtd", ,"ContractData", U54,"LastTradeorSettle",,"T"),3)="768",NA(),IF(RTD("cqg.rtd", ,"ContractData", U54,"LastTradeorSettle",,"T")="",NA(),RTD("cqg.rtd", ,"ContractData", U54,"LastTradeorSettle",,"T"))) ->  | X54: =IF(LEFT(RTD("cqg.rtd",,"StudyData",U54, "Bar",, "Close","D","-1","All",,,,"T"),3)="777",NA(),IF(RTD("cqg.rtd",,"StudyData",U54, "Bar",, "Close","D","-1","All",,,,"T")="",NA(),RTD("cqg.rtd",,"StudyData",U54, "Bar",, "Close","D","-1","All",,,,"T"))) ->  | Y54: =IF(LEFT(RTD("cqg.rtd",,"StudyData",U54, "Bar",, "Close","D","-5","All",,,,"T"),3)="777",NA(),IF(RTD("cqg.rtd",,"StudyData",U54, "Bar",, "Close","D","-5","All",,,,"T")="",NA(),RTD("cqg.rtd",,"StudyData",U54, "Bar",, "Close","D","-5","All",,,,"T"))) ->  | Z54: =IF(LEFT(RTD("cqg.rtd",,"StudyData",U54, "Bar",, "Close","D","-20","All",,,,"T"),3)="777",NA(),IF(RTD("cqg.rtd",,"StudyData",U54, "Bar",, "Close","D","-20","All",,,,"T")="",NA(),RTD("cqg.rtd",,"StudyData",U54, "Bar",, "Close","D","-20","All",,,,"T"))) ->  | AE54: 21 | AF54: SO3S2?21 | AG54: =IF(LEFT(RTD("cqg.rtd", ,"ContractData", AF54,"LastTradeorSettle",,"T"),3)="768",NA(),IF(RTD("cqg.rtd", ,"ContractData", AF54,"LastTradeorSettle",,"T")="",NA(),RTD("cqg.rtd", ,"ContractData", AF54,"LastTradeorSettle",,"T"))) ->  | AI54: =IF(LEFT(RTD("cqg.rtd",,"StudyData",AF54, "Bar",, "Close","D","-1","All",,,,"T"),3)="777",NA(),IF(RTD("cqg.rtd",,"StudyData",AF54, "Bar",, "Close","D","-1","All",,,,"T")="",NA(),RTD("cqg.rtd",,"StudyData",AF54, "Bar",, "Close","D","-1","All",,,,"T"))) ->  | AJ54: =IF(LEFT(RTD("cqg.rtd",,"StudyData",AF54, "Bar",, "Close","D","-5","All",,,,"T"),3)="777",NA(),IF(RTD("cqg.rtd",,"StudyData",AF54, "Bar",, "Close","D","-5","All",,,,"T")="",NA(),RTD("cqg.rtd",,"StudyData",AF54, "Bar",, "Close","D","-5","All",,,,"T"))) ->  | AK54: =IF(LEFT(RTD("cqg.rtd",,"StudyData",AF54, "Bar",, "Close","D","-20","All",,,,"T"),3)="777",NA(),IF(RTD("cqg.rtd",,"StudyData",AF54, "Bar",, "Close","D","-20","All",,,,"T")="",NA(),RTD("cqg.rtd",,"StudyData",AF54, "Bar",, "Close","D","-20","All",,,,"T"))) -> 
R55: 21
R56: 22
R57: 23
R58: 24
R59: 25
